Workbook

Sheet Bilgi Girişi
C2: Hesaplamaya İlişkin Mevcut Maaş ve Kişisel Bilgilerinizi Aşağıdaki Personel Bilgileri Alanına Giriniz | H2: Kıst Maaşmı
C3: Kurum : | D3: Afyon Kocatepe Üniveritesi | H3: Ay Günü: | I3: 30
B4: 1 | C4: Ay / YIL | E4: =+'Değerler Tablosu'!E5 -> 2017 | F4: Strateji Gel Dai Bşk. | H4: Bordro Günü | I4: 30
C5: Personel Bilgileri
C6: KİŞİSEL BİLGİLER
A7: 0 | B7: 2 | C7: Personel Durumu | F7: =IF(D7="",0,B30+1) -> 0 | G7: =IF(D7="","",IF(D14='Bilgi Girişi'!C84,0,"Özel Hizmet Tazminatı Oranı %")) -> 
B8: =IF(D7="","",3) ->  | C8: =IF(D7="","","T.C. Kimlik Numarası") ->  | F8: =IF($D$7="",0,F7+1) -> 0 | G8: =IF(D7="","",IF(D14='Bilgi Girişi'!C84,0,"Mali Sorumluk Zammı Puanı")) -> 
B9: =IF(D7="","",B8+1) ->  | C9: =IF(D7="","","Kurum Sicil Numarası") ->  | F9: =IF($D$7="",0,F8+1) -> 0 | G9: =IF(D7="","",IF(D14='Bilgi Girişi'!C84,0,"İş Riski Zammı Puanı")) -> 
B10: =IF(D7="","",B9+1) ->  | C10: =IF(D7="","","Emekli sicil Numarası") ->  | F10: 0 | G10: =IF(D7="","",IF(D14='Bilgi Girişi'!C84,0,"Tem.Güç.Zammı Puanı")) -> 
B11: =IF(D7="","",B10+1) ->  | C11: =IF(D7="","","Adınız Soyadınız") ->  | F11: 0 | G11: =IF(D7="","",IF(D14='Bilgi Girişi'!C84,0,"Yan Ödeme Puan Toplamı")) ->  | H11: =SUM(H8:I10) -> 0
B12: =IF(D7="","",B11+1) ->  | C12: =IF(D7="","","Medeni Haliniz") ->  | F12: 0 | G12: =IF(D7="","",IF(D14='Bilgi Girişi'!C83,"(İdari Personel İçin )Yabancı Diliniz Varmı ?/Düzeyi",0)) -> 
B13: =IF(D7="","",B12+1) ->  | C13: =IF(D7="","",IF(D12="Bekar","",IF(D12="","","Çocuk Sayınız"))) ->  | F13: 0 | G13: =IF(D14='Bilgi Girişi'!C84,"(Akademik Personel İçin )Yabancı Diliniz Varmı ? / Düzeyi",0) -> 0
B14: =IF(D7="","",B13+1) ->  | C14: =IF(D7="","","Kadro Durumunuz") ->  | F14: 0 | G14: =IF(D14='Bilgi Girişi'!C84,"Yüksek Öğrenim Tazminatı Oranı %",0) -> 0
B15: =IF(D7="","",B14+1) ->  | C15: =IF(D7="","","Kadro Ünvanınız") ->  | F15: 0 | G15: =IF(D7="","","Döner Sermaye Alıyormusunuz ?") -> 
B16: =IF(D7="","",B15+1) ->  | C16: =IF(D7="","","Kadro Dereceniz") ->  | F16: 0 | G16: =IF(D7="","",IF(H15="Evet",0,"Ek Ödeme Oranınız")) -> 
B17: =IF(D7="","",B16+1) ->  | C17: =IF(D7="","","Maaş Dereceniz / Kademeniz") ->  | F17: 0 | G17: =IF(D7="","","İdari Göreviniz Varmı ? / Oranını % Giriniz") -> 
B18: =IF(D7="","",B17+1) ->  | C18: =IF(D7="","","Emekliliğe Esas Dereceniz / Kademeniz") ->  | F18: 0 | G18: =IF(D14='Bilgi Girişi'!C84,"Üniverite Ödeneği Oranı %",0) -> 0
B19: =IF(D7="","",B18+1) ->  | C19: =IF(D7="","","Eski Emekliliğe Esas Dereceniz / Kademeniz") ->  | F19: 0 | G19: =IF(D14='Bilgi Girişi'!C84,"Eğitim Öğretim Ödeneği",0) -> 0
B20: =IF(D7="","",B19+1) ->  | C20: =IF(D7="","","Kıdem Yılınız") ->  | F20: 0 | G20: =IF(D14=C84,"Akademik Teşvik Ödeneği Puanınızı Giriniz",0) -> 0
B21: =IF(D7="","",B20+1) ->  | C21: =IF(D7="","","Eski Kıdem Yılınız") ->  | F21: 0 | G21: =IF(D14=C84,"Akademik Teşvik Oranı %",0) -> 0
B22: =IF(D7="","",B21+1) ->  | C22: =IF(D7="","","Ek Gostergeniz (Ödemeye Esas)") ->  | F22: 0 | G22: =IF(D14='Bilgi Girişi'!C84,"Geliştirme Ödeneği Alıyormusunuz / Oranı",0) -> 0
B23: =IF(D7="","",B22+1) ->  | C23: =IF(D7="","","Emekliliğe Esas Ek Göstergeniz ") ->  | F23: 0 | G23: =IF(D7="","","Bireysel Emeklilik Kesintiniz Varmı (BES)") -> 
B24: =IF(D7="","",B23+1) ->  | C24: =IF(D7="","","Eski Emekliliğe Esas Ek Göstergeniz ") ->  | F24: 0 | G24: =IF(D7="","",IF(D14='Bilgi Girişi'!C83,"Özelleştirmeden Gelen Personel mi ? / Eski Kurum Neti TL",0)) -> 
B25: =IF(D7="","",B24+1) ->  | C25: =IF(D7="","","Varsa Bu Bordroda kullanılacak Raporlu Gun Sayınız") ->  | F25: 0 | G25: =IF(D7="","","NormaL İcra Borcunuz Varmı ?") -> 
B26: =IF(D7="","",B25+1) ->  | C26: =IF(D7="","","Özel Sigorta Tutarı TL (Hayat Sigortası)") ->  | F26: 0 | G26: =IF(D7="","","Kefaletli Göreviniz Varmı ?") -> 
B27: =IF(D7="","",B26+1) ->  | C27: =IF(D7="","","Varsa Geçen Aylar Vergi Matrah Toplamınız") -> 
B28: =IF(D7="","",B27+1) ->  | C28: =IF(D7="","","Sendika Üyeliğiniz Var Mı ?") -> 
B29: =IF(D7="","",B28+1) ->  | C29: =IF(D7="","","Varsa Sakatlık İndirimi Durumu / Tutarı TL") -> 
B30: =IF(D7="","",B29+1) ->  | C30: =IF(D7="","","Tahhütlü İcra Borcunuz Varmı ? / Varsa Miktarını Giriniz") -> 
C33: Mustafa İŞBİLİR / Afyon Kocatepe Ünv./İdari Ve Mali İşler/ Şube Müdürü / Aralık 2017
C34: Tadilat ve düzenleme yapılmaktadır.Karşılaştığınız Sorunlar için 05427686825
C61: Aylar
C62: Ocak | E62: =CONCATENATE('Bilgi Girişi'!D17,'Bilgi Girişi'!E17) -> 
C63: Şubat | E63: =CONCATENATE('Bilgi Girişi'!D18,'Bilgi Girişi'!E18) -> 
C64: Mart | E64: =CONCATENATE('Bilgi Girişi'!D19,'Bilgi Girişi'!E19) -> 
C65: Nisan | E65: Evli Eşi Çalışıyor
C66: Mayıs | E66: Evli Eşi Çalışmıyor
C67: Haziran | E67: Evli Eşi Emekli V.İnd Yararlanıyor
C68: Temmuz | E68: Bekar
C69: Ağustos
C70: Eylül
C71: Ekim | E71: Rektör
C72: Kasım | E72: 3 Yıllık Profesör
C73: Aralık | E73: Yeni Profesör
E74: Doçent
E75: Genel Sekreter
C76: Evet | E76: İç Denetçi
C77: Hayır | E77: Araştırmacı 1
E78: Araştırmacı
C80: 01/10/2008 Den Önceki Personel
C81: 01/10/2008 Den Sonraki Personel | E81: 1.Derece
E82: 2.Derece
C83: İdari Personel | E83: 3.Derece
C84: Akademik Personel
C90: 1 | D90: 100
C91: 2 | D91: 200
C92: 3 | D92: 300
C93: 4 | D93: 400
C94: 5 | D94: 500
C95: 6 | D95: 600
C96: 7 | D96: 650
C97: 8 | D97: 750
C98: 9 | D98: 850
C99: 10 | D99: 950
C100: 11 | D100: 1050
C101: 12 | D101: 1150
C102: 13 | D102: 1250
C103: 14 | D103: 1350
C104: 15 | D104: 1450
C105: 16 | D105: 1550
C106: 17 | D106: 1650
C107: 18 | D107: 1750
C108: 19 | D108: 1850
C109: 20 | D109: 1950
C110: 21 | D110: 2050
C111: 22 | D111: 2150
C112: 23 | D112: 2200
C113: 24 | D113: 2300
C114: 25 | D114: 2400
C115: 26 | D115: 2500
C116: 27 | D116: 2600
C117: 28 | D117: 2700
C118: 29 | D118: 2800
C119: 30 | D119: 2900
D120: 3000
D121: 3100
D122: 3200
D123: 3300
D124: 3400
D125: 3500
D126: 3600
D127: 3700
D128: 3800
D129: 3900
D130: 4000
D131: 4100
D132: 4200
D133: 4300
D134: 4400
D135: 4500
D136: 4600
D137: 4700
D138: 4800
D139: 4900
D140: 5000
D141: 5100
D142: 5200
D143: 5300
D144: 5400
D145: 5500
D146: 5600
D147: 5700
D148: 5800
D149: 5900
D150: 6000
D151: 6100
D152: 6200
D153: 6300
D154: 6400
D155: 6500

Sheet Bordro
B5: Kurumu / Birimi | C5: =IF(C9=0,0,CONCATENATE(+'Bilgi Girişi'!D3," ",'Bilgi Girişi'!J3," ",'Bilgi Girişi'!F4)) -> 0 | F5: Gelir Toplamı | G5: 2182.92
B6: Ait Olduğu Ay | C6: =+'Bilgi Girişi'!D4 -> 0 | F6: Kesinti Toplamı | G6: 495.05
B7: Bütçe Yılı | C7: =IF(C9=0,0,+'Bilgi Girişi'!E4) -> 0 | F7: Net �denen | G7: 1687.87
B8: PERSONEL BİLGİLERİ | C8: 10636518190 | D8: GELİRİN | F8: KESİNTİNİN
B9: =IF(C9=0,0,"T.C. Kimlik Numarası") -> 0 | C9: =+'Bilgi Girişi'!D8 -> 0 | D9: ADI | E9: T U T A R I | F9: ADI | G9: T U T A R I
B10: =IF(C10=0,0,"Adı Soyadı") -> 0 | C10: =+'Bilgi Girişi'!D11 -> 0 | D10: =IF(E10=0,0,"Aylık Tutar") -> 0 | E10: =+Hesaplamalar!E6 -> 0 | F10: =IF(G10=0,0,"Gelir Vergisi") -> 0 | G10: =+Hesaplamalar!U9 -> 0
B11: =IF(C11=0,0,"Kurum Sicil Numarası") -> 0 | C11: =+'Bilgi Girişi'!D9 -> 0 | D11: =IF(E11=0,0,"Ek Gosterge") -> 0 | E11: =+Hesaplamalar!E14 -> 0 | F11: =IF(G11=0,0,"Damga Vergisi") -> 0 | G11: =+Hesaplamalar!U12 -> 0
B12: =IF(C12=0,0,"Emekli sicil Numarası") -> 0 | C12: =+'Bilgi Girişi'!D10 -> 0 | D12: =IF(E12=0,0,"Taban Aylık") -> 0 | E12: =+Hesaplamalar!E10 -> 0 | F12: =IF(G12=0,0,"Emekli Keseneği (Devlet) %20") -> 0 | G12: =+Hesaplamalar!U13 -> 0
B13: =IF(C13=0,0,"Hizmet Sınıfı / Ünvanı") -> 0 | C13: =+'Bilgi Girişi'!D15 -> 0 | D13: =IF(E13=0,0,"Kıdem Aylık") -> 0 | E13: =+Hesaplamalar!E12 -> 0 | F13: =IF(G13=0,0,"Emekli Keseneği (Kişi) %16") -> 0 | G13: =+Hesaplamalar!U14 -> 0
B14: =IF(C14=0,0,"Medeni Hali / Çocuk Sayısı") -> 0 | C14: =+'Bilgi Girişi'!D12 -> 0 | D14: =IF(E14=0,0,"Yan Odeme") -> 0 | E14: =IF(Hesaplamalar!I24>0,Hesaplamalar!L27,+Hesaplamalar!I8) -> 0 | F14: =IF(G14=0,0,+D16) -> 0 | G14: =+E16 -> 0
B15: =IF(C15=0,0,"Kıdem Yılı") -> 0 | C15: =+'Bilgi Girişi'!D20 -> 0 | D15: =IF(E15=0,0,"Em.Kes.Karşılığı %20") -> 0 | E15: =+Hesaplamalar!U13 -> 0 | F15: =IF(G15=0,0,+D17) -> 0 | G15: =+E17 -> 0
B16: =IF(C16=" / ",0,"Maaş Derece / Kademe") -> 0 | C16: =CONCATENATE('Bilgi Girişi'!D17," / ",'Bilgi Girişi'!E17) -> / | D16: =IF(E16=0,0,+Hesaplamalar!T31) -> 0 | E16: =+Hesaplamalar!U31 -> 0 | F16: =IF(G16=0,0,"Gen.Sag.Sig.Pir.(Devlet) %12") -> 0 | G16: =+Hesaplamalar!U17 -> 0
B17: =IF(C15=0,0,"Ek Gosterge (Ödemeye Esas)") -> 0 | C17: =+'Bilgi Girişi'!D22 -> 0 | D17: =IF(E17=0,0,+Hesaplamalar!T32) -> 0 | E17: =+Hesaplamalar!U32 -> 0 | F17: =+D20 -> 0 | G17: =+E20 -> 0
B18: =IF(C18=" / ",0,"Derece / Kademe (Emekliliğe Esas)") -> 0 | C18: =CONCATENATE('Bilgi Girişi'!D18," / ",'Bilgi Girişi'!E18) -> / | D18: =IF(E18=0,0,"Makam Tazminatı") -> 0 | E18: =+Hesaplamalar!I10 -> 0 | F18: =IF(G18=0,0,+Hesaplamalar!D30) -> 0 | G18: =+E20 -> 0
B19: =IF(C19=0,0,"Ek Gösterge (Emekliliğe Esas)") -> 0 | C19: =+'Bilgi Girişi'!D23 -> 0 | D19: =IF(E19=0,0,"Gen.Sag.Sig.Pir.(Devlet) %12") -> 0 | E19: =+Hesaplamalar!U30 -> 0 | F19: =IF(G19=0,0,+Hesaplamalar!T15) -> 0 | G19: =+Hesaplamalar!U15 -> 0
B20: =IF(C20=0,0,IF('Bilgi Girişi'!D25=0,0,"Raporlu Gun")) -> 0 | C20: =+'Bilgi Girişi'!D2 -> 0 | D20: =IF(E20=0,0,+Hesaplamalar!D31) -> 0 | E20: =+Hesaplamalar!E31 -> 0 | F20: =IF(G20=0,0,IF('Bilgi Girişi'!D28="",0,"Sendika Aidatı")) -> 0 | G20: =+Hesaplamalar!U19 -> 0
B21: =IF(C21=0,0,IF('Bilgi Girişi'!D26=0,0,"Sigorta (Özel Sağlık)")) -> 0 | C21: =+'Bilgi Girişi'!D26 -> 0 | D21: =IF(E21=0,0,IF(Hesaplamalar!E17=0,0,"Aile Yardımı")) -> 0 | E21: =Hesaplamalar!E17 -> 0 | F21: =IF(G21=0,0,IF('Bilgi Girişi'!D30="EVET","Taahütlü İcra Kesintisi",0)) -> 0 | G21: =+Hesaplamalar!U20 -> 0
B22: =IF(C22=0,0,"Aylık Vergi Matrahı") -> 0 | C22: =+Hesaplamalar!U5 -> 0 | D22: =IF(E22=0,0,IF('Bilgi Girişi'!C13=0,0,"ÇocukYardımı")) -> 0 | E22: =+Hesaplamalar!E18 -> 0 | F22: =IF(G22=0,0,IF('Bilgi Girişi'!H25="Evet","Normai İcra Kesintisi",0)) -> 0 | G22: =+Hesaplamalar!U21 -> 0
B23: =IF(C23=0,0,"Geçen Aylar Vergi Matrahı Toplamı") -> 0 | C23: =+'Bilgi Girişi'!D27 -> 0 | D23: =IF(E23=0,0,"Özel Hizmet Tazminatı") -> 0 | E23: =IF(Hesaplamalar!I24>0,Hesaplamalar!L26,+Hesaplamalar!I6) -> 0 | F23: =IF('Bilgi Girişi'!H26="Evet","Kefalet Kesintisi",0) -> 0 | G23: =+Hesaplamalar!U22 -> 0
B24: =IF(C24=0,0,"Asgari Geçim İndirimi Tutarı") -> 0 | C24: =+Hesaplamalar!U33 -> 0 | D24: =IF(E24=0,0,IF('Bilgi Girişi'!H13=0,0,"Yabancı Dil Tazminatı")) -> 0 | E24: =((IF(Hesaplamalar!I16=0,Hesaplamalar!I18,Hesaplamalar!I16))) -> 0 | F24: =IF(G24=0,0,+Hesaplamalar!T23) -> 0 | G24: =+Hesaplamalar!U23 -> 0
D25: =IF(E25=0,0,+Hesaplamalar!H13) -> 0 | E25: =+Hesaplamalar!I13 -> 0 | F25: =IF(G25=0,0,+Hesaplamalar!T18) -> 0 | G25: =+Hesaplamalar!U18 -> 0
D26: =IF(E26=0,0,IF(Hesaplamalar!I21=0,0,"Ek Öde.(666 KHK")) -> 0 | E26: =+Hesaplamalar!I21 -> 0
D27: =IF(E27=0,0,+Hesaplamalar!H19) -> 0 | E27: =+Hesaplamalar!I19 -> 0 | F27: Gelir Toplamı | G27: =SUM(E10:E34) -> 0
D28: =IF(E28=0,0,+Hesaplamalar!L7) -> 0 | E28: =+Hesaplamalar!M7 -> 0 | F28: Kesinti Toplamı | G28: =SUM(G10:G25) -> 0
D29: =IF(E29=0,0,+Hesaplamalar!L8) -> 0 | E29: =+Hesaplamalar!M8 -> 0 | F29: Net Ödenen | G29: =G27-G28 -> 0
D30: =IF(E30=0,0,+Hesaplamalar!L10) -> 0 | E30: =+Hesaplamalar!M10 -> 0
D31: =IF(E31=0,0,+Hesaplamalar!L6) -> 0 | E31: =+Hesaplamalar!M6 -> 0 | F31: Toplam Ödenen | G31: =G29 -> 0
D32: =IF(E32=0,0,IF('Bilgi Girişi'!D28="",0,"Top.Söz.İkram.")) -> 0 | E32: =+Hesaplamalar!M11 -> 0
D33: =IF(E33=0,0,+Hesaplamalar!H14) -> 0 | E33: =+Hesaplamalar!I14 -> 0
D34: =IF(E34=0,0,+Hesaplamalar!L9) -> 0 | E34: =+Hesaplamalar!M9 -> 0
B38: =+'Bilgi Girişi'!C35 -> 0

Sheet Hesaplamalar
T3: KESİNTİLER
D4: Temel Maaşlar | P4: Emekli Keseneği Hesaplamaya İlşikin Bölüm | T4: Kesintinin Adı | U4: Tutarı
D5: =IF('Bilgi Girişi'!D7="","","Maaş Göstergesi") ->  | E5: =IF(ISERROR(VLOOKUP('Bilgi Girişi'!E62,'Derece Kademe'!N17:O287,2,FALSE)),0,VLOOKUP('Bilgi Girişi'!E62,'Derece Kademe'!N17:O287,2,FALSE)) -> 0 | H5: Zam ve Tazminatlar | L5: Ödenekler | P5: =IF('Bilgi Girişi'!D7='Bilgi Girişi'!C80,"Em.Kes.Katkı Oranı % Her İki Ek Göst Eşit Olanlar",0) -> 0 | Q5: =IF('Bilgi Girişi'!D22>6400,215,IF(P5=0,0,+S5)) -> 0 | S5: =LARGE('Değerler Tablosu'!I45:I51,1) -> 55 | T5: =IF('Bilgi Girişi'!D7="","","Bu Ay Vergi Matrahınız") ->  | U5: =IF(I24>0,SUM((E6+E14+E10+E12+L27+M6)-(U14+'Bilgi Girişi'!D26+U6+U18+U15+U19+E30)),SUM((E6+E14+E10+E12+I8+M6)-(U14+'Bilgi Girişi'!D26+U6+U18+U15+U19+E30))) -> 0
D6: =IF('Bilgi Girişi'!D7="","","Aylık Tutar (Ödemeye Esas)") ->  | E6: =ROUND((IF(ISERROR(((E5*'Değerler Tablosu'!E6)/'Bilgi Girişi'!I3)*'Bilgi Girişi'!I4),0,(E5*'Değerler Tablosu'!E6)/'Bilgi Girişi'!I3)*'Bilgi Girişi'!I4),2) -> 0 | H6: =IF('Bilgi Girişi'!D7="","",IF('Bilgi Girişi'!G7=0,0,"Ödemeye Esas Özel Hizmet Tazminatı Tutarı")) ->  | I6: =ROUND(((((9500*'Değerler Tablosu'!E6)/100)*'Bilgi Girişi'!H7)/'Bilgi Girişi'!I3)*'Bilgi Girişi'!I4,2) -> 0 | L6: =IF('Bilgi Girişi'!H17="Evet","İdari Görev Tutarı",0) -> 0 | M6: =ROUND((((E5+'Bilgi Girişi'!D22)*'Değerler Tablosu'!E6)*'Bilgi Girişi'!I17)/100,2) -> 0 | P6: =IF('Bilgi Girişi'!D7='Bilgi Girişi'!C80,"Em.Kes.Katkı Tutarı Her İki Göstergesi Eşit Olanlar",0) -> 0 | Q6: =IF(B7=B8,0,ROUND(IF(P6=0,0,('Değerler Tablosu'!E6*9500)*Q5)/100,2)) -> 0 | T6: =IF('Bilgi Girişi'!D7="","","Sakatlık İndirimi Tutarı TL") ->  | U6: =IF(ISERROR(VLOOKUP('Bilgi Girişi'!D29,'Değerler Tablosu'!I31:J33,2,FALSE)),0,VLOOKUP('Bilgi Girişi'!D29,'Değerler Tablosu'!I31:J33,2,FALSE)) -> 0
B7: =CONCATENATE('Bilgi Girişi'!D7,'Bilgi Girişi'!I2) ->  | D7: =IF('Bilgi Girişi'!D7="","","Emekliye Esas Aylık Göstergesi") ->  | E7: =IF(B7=B8,0,IF(ISERROR(VLOOKUP('Bilgi Girişi'!E63,'Derece Kademe'!N17:O290,2,FALSE)),0,VLOOKUP('Bilgi Girişi'!E63,'Derece Kademe'!N17:O290,2,FALSE))) -> 0 | H7: =IF('Bilgi Girişi'!D7="","",IF('Bilgi Girişi'!G8=0,0,"Emkliye Esas Özel Hizmet Tazminatı Tutarı")) ->  | I7: =ROUND(((((9500*'Değerler Tablosu'!E6)/100)*'Bilgi Girişi'!H7)/30)*'Bilgi Girişi'!I4,2) -> 0 | L7: =IF('Bilgi Girişi'!G18=0,0,"Üniversite Ödeneği Tutarı") -> 0 | M7: =IF(L7=0,0,ROUND(IF('Bilgi Girişi'!H18="",0,(((9500*'Değerler Tablosu'!E6)*'Bilgi Girişi'!H18)/100)/'Bilgi Girişi'!I3)*'Bilgi Girişi'!I4,2)) -> 0 | P7: =IF(Q7=0,0,"Emekliye Esas Ek Gösterge Tutarı Ödemeye Esas Ek Göstergesi Aynı Olanlar") -> 0 | Q7: =IF(B7=B8,0,IF('Bilgi Girişi'!D22='Bilgi Girişi'!D23,('Bilgi Girişi'!D23*'Değerler Tablosu'!E6),0)) -> 0 | T7: =IF('Bilgi Girişi'!D7="","","Toplam Vergi Matrahınız") ->  | U7: ='Bilgi Girişi'!D27+U5 -> 0
B8: 01/10/2008 Den Önceki PersonelEvet | D8: =IF('Bilgi Girişi'!D7="","","Eski Emekliye Esas Aylık Göstergesi") ->  | E8: =IF(B8=B9,0,IF(ISERROR(VLOOKUP('Bilgi Girişi'!E64,'Derece Kademe'!N17:O290,2,FALSE)),0,VLOOKUP('Bilgi Girişi'!E64,'Derece Kademe'!N17:O290,2,FALSE))) -> 0 | H8: =IF('Bilgi Girişi'!D7="","",IF('Bilgi Girişi'!G11=0,0,"Ödenecek Yan Odemeler Toplamı")) ->  | I8: =ROUND((('Bilgi Girişi'!H11*'Değerler Tablosu'!E7)/'Bilgi Girişi'!I3)*'Bilgi Girişi'!I4,2) -> 0 | L8: =IF('Bilgi Girişi'!G18=0,0,"Eğitim Öğretim Ödeneği Tutarı") -> 0 | M8: =IF(L8=0,0,ROUND(IF('Bilgi Girişi'!H19="Evet",(((9500*'Değerler Tablosu'!E6)/12)/'Bilgi Girişi'!I3)*'Bilgi Girişi'!I4,0),2)) -> 0 | P8: =IF('Bilgi Girişi'!D7='Bilgi Girişi'!C80,"Em.Kes.Katkı Oranı % Emekli Ek Göst Farklı Olanlar",0) -> 0 | Q8: =IF(P8=0,0,IF('Bilgi Girişi'!D24>6400,215,+S8)) -> 0 | S8: =LARGE('Değerler Tablosu'!K45:K51,1) -> 55 | T8: =IF('Bilgi Girişi'!D7="","","Geçerli Vergi Oranınız %") ->  | U8: =IF(U7=0,0,+Vergi!C21) -> 0
B9: =IF(B8=B8,1,0) -> 1 | D9: =IF('Bilgi Girişi'!D7="","","Aylık Tutar Emekliye Esas") ->  | E9: =ROUND((IF((ISERROR((E8*'Değerler Tablosu'!E6)/'Bilgi Girişi'!I3)*'Bilgi Girişi'!I4),0,(E8*'Değerler Tablosu'!E6)/30)*'Bilgi Girişi'!I4),2) -> 0 | H9: =IF('Bilgi Girişi'!D7="","",IF(I9<=0,0,"Makam Tazminatı Puanı")) ->  | I9: =IF(ISERROR(VLOOKUP('Bilgi Girişi'!D15,'Değerler Tablosu'!I8:J16,2,FALSE)),0,VLOOKUP('Bilgi Girişi'!D15,'Değerler Tablosu'!I8:J16,2,FALSE)) -> 0 | L9: =IF('Bilgi Girişi'!G20>0,"Ödemeye Easas Akademik Teşvik Ödeneği Tutarı",0) -> 0 | M9: =ROUND(((('Değerler Tablosu'!E6*9500)*'Bilgi Girişi'!H21/100)*('Bilgi Girişi'!H20)/100),2) -> 0 | P9: =IF(Q9=0,0,IF('Bilgi Girişi'!D7='Bilgi Girişi'!C80,"Em.Kes.Katkı Tutarı Emekli Ek Göstergesi Farklı Olanlar",0)) -> 0 | Q9: =IF(B7=B8,0,ROUND((('Değerler Tablosu'!E6*9500)*Q8)/100,2)) -> 0 | T9: =IF('Bilgi Girişi'!D7="","","Gelir Vergisi") ->  | U9: =ROUND(IF(U5>0,(U5*U8)/100,0)-U33,2) -> 0
D10: =IF('Bilgi Girişi'!D7="","","Ödemeye Esas Taban Aylık Tutarı") ->  | E10: =IF('Bilgi Girişi'!D17="",0,ROUND((('Değerler Tablosu'!E8*'Değerler Tablosu'!E9)/'Bilgi Girişi'!I3)*'Bilgi Girişi'!I4,2)) -> 0 | H10: =IF('Bilgi Girişi'!D7="","",IF(I10<=0,0,"Makam Tazminatı Tutarı")) ->  | I10: =ROUND(IF(I9>0,I9*'Değerler Tablosu'!E6,0),2) -> 0 | L10: =IF('Bilgi Girişi'!G22=0,0,"Geliştirme Ödeneği Tutarı") -> 0 | M10: =IF(L10=0,0,ROUND(IF('Bilgi Girişi'!H22="Evet",(((E5+'Bilgi Girişi'!D22)*'Değerler Tablosu'!E6)*'Bilgi Girişi'!I22)/100,0),2)) -> 0
D11: =IF('Bilgi Girişi'!D7="","","Emekliye Esas Taban Aylık Tutarı") ->  | E11: =IF('Bilgi Girişi'!D17="",0,ROUND((('Değerler Tablosu'!E8*'Değerler Tablosu'!E9)/30)*'Bilgi Girişi'!I4,2)) -> 0 | H11: =IF('Bilgi Girişi'!D7="","",IF(I11<=0,0,IF('Bilgi Girişi'!D15='Bilgi Girişi'!E71,"Temsil Tazminatı Puanı","Görev Tazminatı Puanı"))) ->  | I11: =IF(ISERROR(VLOOKUP(I9,'Değerler Tablosu'!I22:L28,4,FALSE)),0,VLOOKUP(I9,'Değerler Tablosu'!I22:L28,4,FALSE)) -> 0 | L11: =IF('Bilgi Girişi'!D28="",0,IF('Bilgi Girişi'!D4='Bilgi Girişi'!C62,"Ödemeye Esas Top.Söz.İkram.",IF('Bilgi Girişi'!D4='Bilgi Girişi'!C65,"Ödemeye Esas Top.Söz.İkram.",IF('Bilgi Girişi'!D4='Bilgi Girişi'!C68,"Ödemeye Esas Top.Söz.İkram.",IF('Bilgi Girişi'!D4='Bilgi Girişi'!C71,"Ödemeye Easas Top.Söz.İkram.",0))))) -> 0 | M11: =IF('Bilgi Girişi'!H12="Evet",0,IF(B7=B8,0,ROUND(IF('Bilgi Girişi'!D28="",0,IF('Bilgi Girişi'!D4='Bilgi Girişi'!C62,('Değerler Tablosu'!E14*'Değerler Tablosu'!E6),IF('Bilgi Girişi'!D4='Bilgi Girişi'!C65,('Değerler Tablosu'!E14*'Değerler Tablosu'!E6),IF('Bilgi Girişi'!D4='Bilgi Girişi'!C68,('Değerler Tablosu'!E14*'Değerler Tablosu'!E6),IF('Bilgi Girişi'!D4='Bilgi Girişi'!C71,('Değerler Tablosu'!E14*'Değerler Tablosu'!E6),0))))),2))) -> 0 | T11: =+D31 ->  | U11: =IF('Bilgi Girişi'!D23='Bilgi Girişi'!D24,0,ROUND((E12-E13)+(Q12-Q13),2)) -> 0
D12: =IF('Bilgi Girişi'!D7="","","Kıdem Aylık") ->  | E12: =ROUND(((('Bilgi Girişi'!D20*20)*'Değerler Tablosu'!E6)/'Bilgi Girişi'!I3)*'Bilgi Girişi'!I4,2) -> 0 | H12: =IF('Bilgi Girişi'!D7="","",IF(I12<=0,0,IF('Bilgi Girişi'!D15='Bilgi Girişi'!E71,"Temsil Tazminatı Puanı Ödemeye Esas","GörevTazminatı Puanı ÖdemeyeEsas"))) ->  | I12: =IF(AND('Bilgi Girişi'!D14='Bilgi Girişi'!C84,'Bilgi Girişi'!H16>0),(I11*0.8),IF(AND('Bilgi Girişi'!D14='Bilgi Girişi'!C83,'Bilgi Girişi'!H16>0),(I11*0.8),IF(AND('Bilgi Girişi'!D14='Bilgi Girişi'!C84,'Bilgi Girişi'!H15="Evet"),+I11,IF('Bilgi Girişi'!H15="Evet",(I11*0.8),0)))) -> 0 | P12: =IF(Q12=0,0,"Emekliye Esas Ek Gostergesi Farklı ise Emekli Kes. Tabi Dev.Kat. Ek Gösterge Tutarı") -> 0 | Q12: =ROUND(IF('Bilgi Girişi'!D22<>'Bilgi Girişi'!D23,('Bilgi Girişi'!D22*'Değerler Tablosu'!E6),0),2) -> 0 | T12: =IF('Bilgi Girişi'!D7="","","Damga Vergisi") ->  | U12: =IF(I24>0,ROUND((E6+E14+E10+E12+L27+L26+I13+I21+M11+I10+I16+I19+M7+M8+M10+M6+M9+I18)*Vergi!D11,2),ROUND((E6+E14+E10+E12+I8+I6+I13+I21+M11+I10+I16+I19+M7+M8+M10+M6+M9+I18)*Vergi!D11,2)) -> 0
D13: =IF('Bilgi Girişi'!D7="","","Eski Kıdem Aylık") ->  | E13: =ROUND(((('Bilgi Girişi'!D21*20)*'Değerler Tablosu'!E6)/'Bilgi Girişi'!I3)*'Bilgi Girişi'!I4,2) -> 0 | H13: =IF('Bilgi Girişi'!D7="","",IF(I13<=0,0,IF('Bilgi Girişi'!D15='Bilgi Girişi'!E71,"Temsil TazminatıTutarı","GörevTazminatıTutarı"))) ->  | I13: =ROUND(('Değerler Tablosu'!E6*I12),2) -> 0 | P13: =IF(Q13=0,0,"Emekliye Esas Ek Gostergesi Farklı ise Emekli Kes.Tabi Şahıs Ek Gösterge Tutarı") -> 0 | Q13: =ROUND(IF('Bilgi Girişi'!D22<>'Bilgi Girişi'!D23,('Bilgi Girişi'!D24*'Değerler Tablosu'!E6),0),2) -> 0 | T13: =IF('Bilgi Girişi'!D7=0,0,IF('Bilgi Girişi'!D7='Bilgi Girişi'!C81,0,"Emekli Keseneği (Devlet) Katkısı % 20")) -> 0 | U13: =+U27 -> 0
D14: =IF('Bilgi Girişi'!D7="","","Ek Gosterge Ödemeye Esas") ->  | E14: =ROUND((('Bilgi Girişi'!D22*'Değerler Tablosu'!E6)/'Bilgi Girişi'!I3)*'Bilgi Girişi'!I4,2) -> 0 | H14: =IF('Bilgi Girişi'!D7="","",IF('Bilgi Girişi'!H24="evet","Ödemeye Esas Özelleştirme Tazminatı Tutarı",0)) ->  | I14: =IF(H14=0,0,IF('Bilgi Girişi'!I24=0,0,'Bilgi Girişi'!I24-U36)) -> 0 | T14: =IF('Bilgi Girişi'!D7=0,0,IF('Bilgi Girişi'!D7='Bilgi Girişi'!C81,0,"Emekli Keseneği (Kişi) %16")) -> 0 | U14: =ROUND((U29*0.16)+((U29-U26)*0.2),2) -> 0
H15: =IF('Bilgi Girişi'!D7="","",IF('Bilgi Girişi'!D14='Bilgi Girişi'!C84,0,IF('Bilgi Girişi'!H12="Evet","İdari Pers.Dil Tazminatı Puanı",0))) ->  | I15: =IF(ISERROR(IF(H15=0,0,VLOOKUP('Bilgi Girişi'!D15,'Değerler Tablosu'!N7:P15,3,FALSE))),0,IF(H15=0,0,VLOOKUP('Bilgi Girişi'!D15,'Değerler Tablosu'!N7:P15,3,FALSE))) -> 0 | T15: =IF(T31=0,0,"Mal.Yaş.Ölüm Sig % 9 (Şahıs)") -> 0 | U15: =IF(T15=0,0,ROUND((E9+Q12+E11+E12+I7+M7+E14)*0.09,2)) -> 0
D16: Sosyal Haklar | H16: =IF('Bilgi Girişi'!D7="","",IF(H15=0,0,"Ödemeye Esas Dil Tazminatı Tutarı")) ->  | I16: =ROUND((I15*'Değerler Tablosu'!E6),2) -> 0 | T16: =IF('Bilgi Girişi'!D7=0,0,IF('Bilgi Girişi'!D7='Bilgi Girişi'!C81,0,"Artış %100 (Devlet + Kişi)")) -> 0 | U16: =0*1 -> 0
D17: =IF('Bilgi Girişi'!D12="Evli Eşi Çalışmıyor","Ödemeye Esas Aile Yardımı Tutarı ",0) -> 0 | E17: =IF('Bilgi Girişi'!I2="Evet",0,ROUND(IF('Bilgi Girişi'!D12='Bilgi Girişi'!E66,('Değerler Tablosu'!E6*'Değerler Tablosu'!E10),0),2)) -> 0 | H17: =IF('Bilgi Girişi'!D14='Bilgi Girişi'!C83,0,IF('Bilgi Girişi'!H13="Evet","Akademik Pers.Dil Tazminatı Puanı",0)) -> 0 | I17: =IF(ISERROR(IF(H17=0,0,VLOOKUP('Bilgi Girişi'!I13,'Değerler Tablosu'!O7:P17,2,FALSE))),0,IF(H17=0,0,VLOOKUP('Bilgi Girişi'!I13,'Değerler Tablosu'!O7:P17,2,FALSE))) -> 0 | T17: =IF('Bilgi Girişi'!D7=0,0,IF('Bilgi Girişi'!D7='Bilgi Girişi'!C81,0,"Gen.Sag.Sig.Pir.(% 12 Devlet)")) -> 0 | U17: =+U30 -> 0
D18: =IF('Bilgi Girişi'!D13+'Bilgi Girişi'!E13<=0,0,"Ödemeye Esas Çocuk Yardımı Tutarı ") -> 0 | E18: =IF('Bilgi Girişi'!I2="Evet",0,ROUND(((('Bilgi Girişi'!D13*'Değerler Tablosu'!E11)+('Bilgi Girişi'!E13*'Değerler Tablosu'!E12))*'Değerler Tablosu'!E6),2)) -> 0 | H18: =IF(H17=0,0,"Ödemeye Esas Akademik Dil Tazminatı Tutarı") -> 0 | I18: =ROUND(((I17*'Değerler Tablosu'!E6)/'Bilgi Girişi'!I3)*'Bilgi Girişi'!I4,2) -> 0 | T18: =IF(T32=0,0,"Gen.Sag.Sig.Pir.(Kişi) %5") -> 0 | U18: =IF(T18=0,0,ROUND((E9+Q12+E11+E12+I7+M7+E14)*0.05,2)) -> 0
H19: =IF('Bilgi Girişi'!G14=0,0,"Yüksek Öğrenim Tazminatı Tutarı") -> 0 | I19: =IF(H19=0,0,ROUND(IF('Bilgi Girişi'!H14="",0,((((9500*'Değerler Tablosu'!E6)*'Bilgi Girişi'!H14)/'Bilgi Girişi'!I3)*'Bilgi Girişi'!I4)/100),2)) -> 0 | T19: =IF('Bilgi Girişi'!D28="",0,"Sendika Aidatı Tutarı") -> 0 | U19: =IF('Bilgi Girişi'!I2="Evet",0,IF('Bilgi Girişi'!D28="",0,ROUND((E6+E14+E10+E12+I8+I6+I13+I21+M11+I10+I16+I19+M7+M8+M10+I18+M9)*Vergi!D12,2))) -> 0
T20: =IF('Bilgi Girişi'!D30="Evet","Taahütlü İcra Kesintisi",0) -> 0 | U20: =IF('Bilgi Girişi'!E30<=0,0,+'Bilgi Girişi'!E30) -> 0
D21: Sosyal Güvenlik Primleri / Emekli Kesenekleri | H21: =IF('Bilgi Girişi'!H16=0,0,"Ödemeye Esas Ek Ödeme Tutarı (666 KHK)") -> 0 | I21: =IF('Bilgi Girişi'!H15="Evet",0,ROUND(IF('Bilgi Girişi'!H16<=0,0,(((9500*'Değerler Tablosu'!E6)*'Bilgi Girişi'!H16)/'Bilgi Girişi'!I3)*'Bilgi Girişi'!I4)/100,2)) -> 0 | T21: =IF('Bilgi Girişi'!H25="Evet","Normail İcra Borcu",0) -> 0 | U21: =ROUND(IF(T21=0,0,SUM(E6+E14+E10+E12+I8+I6+I21+I10+I13+I16+I19+M7+M8+M10)*0.25),2) -> 0
D22: Malullül Yaşlılık ve Ölüm Siğortası | T22: =IF('Bilgi Girişi'!H26="Evet","Normal Kefalet Kesintisi",0) -> 0 | U22: =ROUND(IF(T22=0,0,(100*'Değerler Tablosu'!E6)),2) -> 0
D23: =IF('Bilgi Girişi'!D7="","","11% İşverenı Hissesi") ->  | E23: =+U31 -> 0 | T23: =IF(U23=0,0,"Bireysel emeklilik (BES) Tutarı") -> 0 | U23: =ROUNDDOWN(IF('Bilgi Girişi'!H23="Evet",(U26*0.03),0),0) -> 0
D24: =IF('Bilgi Girişi'!D7="","","EMEKLI KESN.%20") ->  | E24: =+U13 -> 0 | H24: Rapor Günü | I24: =+'Bilgi Girişi'!D25 -> 0 | T24: =IF(U24=0,0,"Bireysel emeklilik (BES) Tutarı") -> 0 | U24: =ROUND(IF('Bilgi Girişi'!H23="Evet",(((U31/11)*100)*0.03),0),2) -> 0
H25: Rapor için Hesaplacak Tutarlar | L25: Rapordan Dolayı Ödenecek Tutarlar
D26: Genel Sağlık Siğortası Pirimi | H26: Ö.H.Taz. | I26: =+I6 -> 0 | L26: =I26-(ROUND(IF(I24>0,((($I$26/'Bilgi Girişi'!I3)*Hesaplamalar!$I$24)*$I$28))/100,2)) -> 0 | T26: =IF('Bilgi Girişi'!D7='Bilgi Girişi'!C80,"Em.Kes.Karşılığı % 20 (Devlet K.Matrahı)",0) -> 0 | U26: =IF(E7=0,0,IF(T26=0,0,ROUND(IF(Q7=0,((E9+E10+Q12+E13+Q6)),(Q7+E9+E10+E13+Q6)),2))) -> 0
D27: =IF('Bilgi Girişi'!D7="","","7,5 % İşveren Hissesi") ->  | E27: =+U32 -> 0 | H27: Yan Ödeme | I27: =+I8 -> 0 | L27: =I27-(ROUND(IF(I24>0,((($I$27/'Bilgi Girişi'!I4)*Hesaplamalar!$I$24)*$I$28))/100,2)) -> 0 | T27: =IF('Bilgi Girişi'!D7='Bilgi Girişi'!C80,"Em.Kes.Karşılığı % 20 (Devlet)",0) -> 0 | U27: =ROUND(IF(U26=0,0,(U26*0.2)),2) -> 0
D28: =IF('Bilgi Girişi'!D7="","","12 % İşveren Hissesi") ->  | E28: =+U17 -> 0 | H28: Rapor İnd.Oranı % | I28: 25 | T28: =IF('Bilgi Girişi'!D7="","",IF('Bilgi Girişi'!D7='Bilgi Girişi'!C81,0,"Gen.Sag.Sig.Pir.(Ek Göst Farklı İse ) Devlet K.Matrahı) % 12")) ->  | U28: =IF(B7=B8,0,IF(T28=0,0,ROUND(IF(Q7=0,(E9+Q13+E10+E13+Q9),(Q7+Q13+E10+E12+Q6)),2))) -> 0
T29: =IF('Bilgi Girişi'!D7="","",IF('Bilgi Girişi'!D7='Bilgi Girişi'!C81,0,"Gen.Sag.Sig.Pir.(Ek Göst Aynı İse ) Devlet K.Matrahı) % 12")) ->  | U29: =IF(B7=B8,0,IF(T29=0,0,ROUND(IF(Q7=0,(E9+Q13+E10+E13+Q9),(Q7+Q13+E10+E13+Q6+E9)),2))) -> 0
D30: =IF('Bilgi Girişi'!D7="","","EMEKLI KESN.%100 ŞAHIS") ->  | E30: =+E31 -> 0 | T30: =IF('Bilgi Girişi'!D7="","",IF('Bilgi Girişi'!D7='Bilgi Girişi'!C81,0,"Gen.Sag.Sig.Pir.(Devlet) % 12")) ->  | U30: =ROUND((U29*0.12),2) -> 0
D31: =IF('Bilgi Girişi'!D7="","","EMEKLI KESN.%100 Devlet") ->  | E31: =+U11 -> 0 | T31: =IF('Bilgi Girişi'!D7='Bilgi Girişi'!C81,"Mal.Yaş.Ölüm Sig % 11 (Devlet)",0) -> 0 | U31: =IF(T31=0,0,ROUND((E9+Q12+E11+E12+I7+M7+E14)*0.11,2)) -> 0
T32: =IF('Bilgi Girişi'!D7='Bilgi Girişi'!C81,"Gen Sağ.Sig % 7,5 (Devlet)",0) -> 0 | U32: =IF(T32=0,0,ROUND((E9+Q12+E11+E12+I7+M7+E14)*0.075,2)) -> 0
T33: =IF('Bilgi Girişi'!D7="","","Asgari Geçim İndirimi Tutarınız") ->  | U33: =+'Asg Geç İnd'!Y4 -> 0
T34: =IF('Bilgi Girişi'!D7="","","Gelirler Toplamınız") ->  | U34: =E6+E14+E10+E12+I8+I6+U27+U30+E17+E18+I21+M11+I10+I13+I16+I19+M7+M8+M10+U31+U32+M6+I18+M9 -> 0
T35: =IF('Bilgi Girişi'!D7="","","Kesinti Toplamınız") ->  | U35: =U9+U12+U13+U14+U16+U17+U18+U19+U15+U20+U21+U22+U23+U24 -> 0
T36: =IF('Bilgi Girişi'!D7="","","Net Ödenecek Maaşş Tutarınız") ->  | U36: =U34-U35 -> 0
T37: =IF('Bilgi Girişi'!H24="Evet","Net Ödenen Maşınız Özelleştirme Tazminatı Dahil",0) -> 0 | U37: =IF('Bilgi Girişi'!H24="Evet",I14+U36,0) -> 0

Sheet Tablo
J2: 5510 Sayılı Kanuna Göre 4/c kapsamında 01/10/2008 den Önce Memuriyete Başlayanlar | R2: 5510 Sayılı Kanuna Göre 4/c kapsamında 01/10/2008 den Sonra Memuriyete Başlayanlar | T2: 5510 Sayılı Kanuna Göre 4/c kapsamında 01/10/2008 den Önce Memuriyete Başlayanlar
B3: Harcama Gurubu | D3: Harcama Kalemi | F3: Damga Vergisi | H3: Gelir Vergisi | J3: Emekli Keseneği | L3: Tasarruf Kesintisi | N3: Döner Sermaye | P3: Vergi İndirimi | R3: Malüllük Yaşlılık ve Ölüm & Genel Sağlık Siğortası Primi | T3: "01/07/2008 den itibaren 3 yıl Sonra " 18/12/2009 tarih ve 27436 sayılıR.G Yayımlanan KAMU PERSONELİNİN GENEL SAĞLIK SİGORTASI KAPSAMINA ALINMASI HAKKINDA TEBLİĞ 5.Maddesi Genel Sağlık Siğortası Primi % 12 Tamamı İşverenden
B6: Temel Maaşlar (Eski 110) | D6: MAAŞ | F6: Tabi | H6: Tabi | J6: ----- | L6: Tabi | N6: Tabi | P6: ------ | R6: ------ | T6: -----
D7: EMEKLİ MAAŞI | F7: ------ | H7: ---- | J7: Tabi | L7: ----- | N7: ----- | P7: ------ | R7: Tabi | T7: Tabi
D8: TABAN MAAŞ | F8: Tabi | H8: Tabi | J8: Tabi | L8: Tabi | N8: ------ | P8: ------ | R8: Tabi | T8: Tabi
D9: KIDEM | F9: Tabi | H9: Tabi | J9: Tabi | L9: Tabi | N9: ------ | P9: ------ | R9: Tabi | T9: Tabi
D10: EK GOSTERGE | F10: Tabi | H10: Tabi | J10: ------ | L10: Tabi | N10: Tabi | P10: ------ | R10: ------ | T10: ------
D11: Emekli Ek Göstersi | F11: ------ | H11: ------ | J11: Tabi | L11: ------ | N11: ------ | P11: ------ | R11: Tabi | T11: Tabi
D12: İKİNCİ GÖREV AYLIĞI | F12: Tabi | H12: Tabi | J12: ------ | L12: ------ | N12: ------ | P12: ------ | R12: ------ | T12: ------
P14: ------
B15: Sos Güv.Primi | D15: Malullül Yaşlılık ve Ölüm Siğortası
D16: 9 % Sigortalı Hissesi | F16: ------ | H16: ------ | J16: ------ | L16: ------ | N16: ------ | P16: Tabi | R16: ------ | T16: ------
D17: 11% İşverenı Hissesi | F17: ------ | H17: ------ | J17: ------ | L17: ------ | N17: ------ | P17: ------ | R17: ------ | T17: ------
D19: Genel Sağlık Siğortası Pirimi | T19: ------
D20: 5 % Sigortalı Hissesi | F20: ------ | H20: ------ | J20: ------ | L20: ------ | N20: ------ | P20: Tabi | R20: ------ | T20: ------
D21: 7,5 % İşverenı Hissesi | F21: ------ | H21: ------ | J21: ------ | L21: ------ | N21: ------ | P21: ------ | R21: ------ | T21: ------
D22: 12 % İşverenı Hissesi | F22: ------ | H22: ------ | J22: ------ | L22: ------ | N22: ------ | P22: ------ | R22: ------ | T22: 01/10/2008 den Önceki Memurlar İçin, Emekli Keseneğine Tabi Gelirler Üzerinden Tamamı Devletten % 100 Artış Varsa Artıştan Önceki Matrahr Üzerinden
T23: ------
T24: ------
B25: Emekli Sandığına (Eski 110) | D25: EMEKLI KESN.%20 | F25: ------ | H25: ------ | J25: ------ | L25: ------ | N25: ------ | P25: ------ | R25: ------ | T25: ------
D26: EMEKLI KESN.%25 | F26: ------ | H26: ------ | J26: ------ | L26: ------ | N26: ------ | P26: Tabi | R26: ------ | T26: ------
D27: EMEKLİ KESN.%100 | F27: ------ | H27: ------ | J27: ------ | L27: ------ | N27: ------ | P27: Tabi | R27: ------ | T27: ------
B31: Sosyal Haklar (Eski 140) | D31: COCUK YARDIMI | F31: ------ | H31: ------ | J31: ------ | L31: ------ | N31: ------ | P31: ------ | R31: ------ | T31: ------
D32: AİLE YARDIMI | F32: ------ | H32: ------ | J32: ------ | L32: ------ | N32: ------ | P32: ------ | R32: ------ | T32: ------
D33: TAS.KES.DEV.KATS.%3 Kaldırıldı | F33: ------ | H33: ------ | J33: ------ | L33: ------ | N33: ------ | P33: ------ | R33: ------ | T33: ------
D34: DOĞUM YARDIMI | F34: ------ | H34: ------ | J34: ------ | L34: ------ | N34: ------ | P34: ------ | R34: ------ | T34: ------
B37: Ek Çalışma Karşılıkları (150) | D37: EK ÇALIŞMA KARŞL. | F37: Tabi | H37: Tabi | J37: ------ | L37: ------ | N37: ------ | P37: ------ | R37: ------ | T37: ------
D38: EK ÇALIŞMA KARŞL.(2.ÖĞRT) | F38: Tabi | H38: Tabi | J38: ------ | L38: ------ | N38: ------ | P38: ------ | R38: ------ | T38: ------
D39: EK ÇALIŞMA KARŞL.(Nöbet) | F39: Tabi | H39: ------ | J39: ------ | L39: ------ | N39: ------ | P39: ------ | R39: ------ | T39: ------
B42: Zamlar Ve Tazminatlar (Eski 160) | D42: İŞ RİSKİ(YAN ÖDEME) | F42: Tabi | H42: Tabi | J42: ------ | L42: Tabi | N42: Tabi | P42: ------ | R42: ------ | T42: ------
D43: ÖZEL HİZMET TAZMİ. | F43: Tabi | H43: ------ | J43: ------ | L43: Tabi | N43: Tabi | P43: ------ | R43: Tabi | T43: ------
D44: ARAZİ TAZMİNATI | F44: Tabi | H44: ------ | J44: ------ | L44: ------ | N44: ------ | P44: ------ | R44: ------ | T44: ------
D45: Yapı İşl.Tek.Dai.Bşk % 30 Ek Taz. | F45: Tabi | H45: ------ | J45: ------ | L45: ------ | N45: Tabi | P45: ------ | R45: ------ | T45: ------
D46: MAKAM TAZMİNATI | F46: Tabi | H46: ------ | J46: ------ | L46: Tabi | N46: ------ | P46: ------ | R46: Tabi | T46: ------
D47: TEMSİL TAZMİNATI | F47: Tabi | H47: ------ | J47: ------ | L47: Tabi | N47: ------ | P47: ------ | R47: Tabi | T47: ------
D48: GÖREV TAZMİNATI | F48: Tabi | H48: ------ | J48: ------ | L48: ------ | N48: ------ | P48: ------ | R48: Tabi | T48: ------
D49: NÖBET TAZMİNATI | F49: Tabi | H49: Tabi | J49: ------ | L49: ------ | N49: ------ | P49: ------ | R49: ------ | T49: ------
D50: SAGLIK BAKAN.FARKI | F50: ------ | H50: ------ | J50: ------ | L50: ------ | N50: Tabi | P50: ------ | R50: ------ | T50: ------
D51: ÖZELLEŞTİRMEDEN DOGAN FARK | F51: ------ | H51: ------ | J51: ------ | L51: ------ | N51: ------ | P51: ------ | R51: ------ | T51: ------
D52: YABANCI DİL TAZMİ. | F52: Tabi | H52: ------ | J52: ------ | L52: ------ | N52: Tabi | P52: ------ | R52: ------ | T52: ------
D53: YÜKSEK ÖĞRETİM TAZMİNATI | F53: Tabi | H53: ------ | J53: ------ | L53: ------ | N53: ------ | P53: ------ | R53: ------ | T53: ------
D54: LOJMAN TAZMİNATI 31/03/2006 tarih ve 26125 say.Res.Gaz.Yayım.5473 say.Kan.11.Mad.ileKaldırıld | F54: Tabi | H54: ------ | J54: ------ | L54: ------ | N54: ------ | P54: ------ | R54: ------ | T54: ------
D55: Ek Ödeme 31/3/2006 Tarih ve 26125 Say.R.G Yayımlanan 5473 Say.Kanunla | F55: Tabi | H55: ------ | J55: ------ | L55: ------ | N55: ------ | P55: ------ | R55: ------ | T55: ------
B58: Ödenekler (Eski 170) | D58: İDARİ GÖREV ÖDENEĞİ | E58: Tabi | H58: Tabi | J58: ------ | L58: Tabi | N58: Tabi | P58: ------ | R58: ------ | T58: ------
D59: GELİŞTİRME ÖDENEĞİ | E59: Tabi | H59: ------ | J59: ------ | L59: Tabi | N59: ------ | P59: ------ | R59: ------ | T59: ------
D60: ÜNİVERSİTE ÖDENEĞİ | E60: Tabi | H60: ------ | J60: ------ | L60: Tabi | N60: Tabi | P60: ------ | R60: Tabi | T60: ------
D61: AKADEMİK TEŞVİK ÖDENEĞİ | F61: Tabi | H61: ------ | J61: ------ | L61: Tabi | N61: Tabi | P61: ------ | R61: Tabi | T61: ------
D62: EĞİTİM ÖĞRT.ÖDENEĞİ | E62: Tabi | H62: ------ | J62: ------ | L62: Tabi | N62: Tabi | P62: ------ | R62: ------ | T62: ------
D63: Sendika Ödeneği “31/3/2006 Tarih ve 26125 Say.R.G Yayımlanan 5473 Say.Kanunla eklenen (ek madde 4) 4688 | E63: Tabi | H63: 25.02.2011 Tarih ve 27857 sayılı Mükerrer r.g yayımlanan 6111 sayılı kanunun 118.maddesi ile Ocak Nisan,Temmuz ve Ekim aylarında peşin 45,00 TL Toplu Sözleşme Primi Getirildi | N63: ------ | P63: Tabi (kendisinden Kesilen Kısmı Kadar) | R63: ------ | T63: ------
D64: sayılı Kamu Görevlileri Sendikaları Kanunu Hükümleri Uyarınca Kamu Görevlileri Sendikalarına Üye Olanlara 15/01/2006 dan itibaren 5.00.-YTL Tutarında ödenir
D65: Not: Sendika Yardımı 10/11/2009 tarih ve 27402 sayılı R.G Yayımlanan 2006/94 Esas 2009/92 Karar 25.06/2009 tarihli Anayasa Mah.Kararı İle İptal edildi

Sheet Ödeme Emri
A2: Muhasebe Birimi Kodu | C2: ??
A3: Muhasebe Birimi Adı | C3: =+'Bilgi Girişi'!D3 -> Afyon Kocatepe Üniveritesi | N3: Bütçe Yılı | Q3: =+'Bilgi Girişi'!E4 -> 2017 | T3: İ l g i l i n i n | U3: Adı, Soyadı/Ünvanı
A4: Kurum-Birim Kodu | C4: 1 | D4: 2 | E4: 3 | F4: 4 | G4: 5 | H4: Yevmiyenin | N4: Tarihi | U4: T.C./ Vergi Kimlik No
C5: 38 | D5: 44 | E5: 0 | F5: 0 | G5: 908 | N5: No.su | Q5: 0 | U5: Banka Şube Adı
A6: Kurum Adı | C6: =+C3 -> Afyon Kocatepe Üniveritesi | U6: Banka Hesap Numarası
A7: Birim Adı | C7: =+'Bilgi Girişi'!F4 -> Strateji Gel Dai Bşk. | U7: Bağlı Olduğu Vergi Dairesi
A8: Hesap No | C8: Kurumsal Kod | H8: Fonksiyonel Kod | L8: Finans | N8: Ekonomik / | S8: T u t a r | X8: Hesap / Ayrıntı Adı
L9: Kodu | N9: Y. Hesap Kodu | S9: B o r ç | U9: A l a c a k
C10: 1 | D10: 2 | E10: 3 | F10: 4 | G10: 5 | H10: 1 | I10: 2 | J10: 3 | K10: 4 | L10: 1 | N10: 1 | O10: 2 | P10: 3 | Q10: 4 | R10: 5 | S10: =IF(txtYil>2008,"TL","YTL") -> TL | U10: =IF(txtYil>2008,"TL","YTL") -> TL
A12: 630 | C12: =+$C$5 -> 38 | D12: =+$D$5 -> 44 | E12: =+$E$5 -> 0 | F12: =+$F$5 -> 0 | G12: =+$G$5 -> 908 | L12: 2 | N12: 01 | O12: 01 | P12: 01 | Q12: 1 | S12: =Bordro!E10+Bordro!E12+Bordro!E13+Bordro!E11 -> 0 | X12: Temel Maaşlar
A13: 630 | C13: 38 | D13: 44 | E13: 0 | F13: 0 | G13: 908 | L13: 2 | N13: 01 | O13: 01 | P13: 2 | Q13: 1 | S13: =Bordro!E14+Bordro!E23+Bordro!E18+Bordro!E25+Bordro!E33+Bordro!E24+Bordro!E27+Bordro!E26 -> 0 | X13: Zamlar ve Tazminatlar
A14: 630 | C14: 38 | D14: 44 | E14: 0 | F14: 0 | G14: 908 | L14: 2 | N14: 01 | O14: 01 | P14: 4 | Q14: 1 | S14: =Bordro!E22+Bordro!E21 -> 0 | X14: Sosyal Haklar
A15: 630 | C15: 38 | D15: 44 | E15: 0 | F15: 0 | G15: 908 | L15: 2 | N15: 01 | O15: 01 | P15: 4 | Q15: 1 | S15: =Bordro!E30+Bordro!E28+Bordro!E29+Bordro!E32+Bordro!E31+Bordro!E34 -> 0 | X15: Ödenekler
A16: 630 | C16: 38 | D16: 44 | E16: 0 | F16: 0 | G16: 908 | L16: 2 | N16: 02 | O16: 1 | P16: 06 | Q16: 01 | S16: =Bordro!E16+Bordro!E15 -> 0 | X16: Sosyal Güvenlik Primi Ödemeleri (%20 Devlet Katkısı)
A17: 630 | C17: 38 | D17: 44 | E17: 0 | F17: 0 | G17: 908 | L17: 2 | N17: 02 | O17: 1 | P17: 06 | Q17: 02 | S17: =Bordro!E17+Bordro!E19 -> 0 | X17: Sağlık Primi Ödemeleri (Gen Sağ Sig % 12 Devlet)
A18: 360 | N18: 01 | O18: 01 | P18: 02 | Q18: 00 | S18: =Bordro!C24 -> 0 | X18: Diğer Ücretler ile Ücret sayılan Ödemelerden Yapılan Tevkifa(Asg.Geç.İnd.)
A19: 360 | N19: 01 | O19: 01 | P19: 02 | Q19: 00 | U19: =Bordro!G10+Bordro!C24 -> 0 | X19: Diğer Ücretler ile Ücret sayılan Ödemelerden Yapılan Tevkifa
A20: 360 | N20: 03 | O20: 01 | P20: 00 | Q20: 00 | U20: =+Bordro!G11 -> 0 | X20: Ücret ve Ücret Sayılan Ödemelere Ait Damga Vergisi
A21: 361 | N21: 10 | O21: 01 | P21: 01 | Q21: 1 | U21: =+Bordro!G19 -> 0 | X21: Malüllük,Yaşlılık ve Emeklilik Primi (% 9 Şahıs Kesintisi)
A22: 361 | N22: 10 | O22: 01 | P22: 1 | Q22: 2 | U22: =+Bordro!G25 -> 0 | X22: Genel Sağlık Sigortası Primi (% 5 Şahıs Kesintisi)
A23: 361 | N23: 10 | O23: 02 | P23: 2 | Q23: 1 | U23: =+Bordro!G14 -> 0 | X23: Malüllük,Yaşlılık ve Emeklilik Primi (% 11 Devlet Katkısı)
A24: 361 | N24: 1 | O24: 2 | P24: 1 | Q24: 0 | U24: =+Bordro!G12 -> 0 | X24: Sosyal Güvenlik Primi Ödemeleri (%20 Devlet Katkısı)
A25: 361 | N25: 1 | O25: 1 | P25: 1 | Q25: 0 | U25: =+Bordro!G13 -> 0 | X25: Sosyal Güvenlik Primi Ödemeleri (%16 Şahıs Kesintisi)
A26: 361 | N26: 1 | O26: 2 | P26: 4 | Q26: 0 | U26: =IF(Bordro!G16=0,+Bordro!G15,Bordro!G16) -> 0 | X26: Genel Sağlık Sigortası Primi (% 12 Devlet Katkısı)
A27: 362 | N27: 2 | O27: 6 | P27: 2 | Q27: 0 | U27: =+Bordro!G23 -> 0 | X27: Kefalet Aidatı Aylık Kesintisi
A28: 333 | N28: 3 | O28: 3 | P28: 0 | Q28: 0 | U28: =+Bordro!G21 -> 0 | X28: Tahhütlü İcra Kesintisi
A29: 333 | N29: 3 | O29: 1 | P29: 0 | Q29: 0 | U29: =+Bordro!G22 -> 0 | X29: Normal İcra Kesintisi
A30: 333 | N30: 10 | O30: 03 | U30: =+Bordro!G20 -> 0 | X30: …….Sendikası (Sendika Aidatı)
A31: 361 | N31: 98 | O31: 9 | P31: 2 | U31: =+Bordro!G24 -> 0 | X31: BES (Vakıfbank Emeklilik A.Ş)Diğer
A32: 103 | C32: =+$C$5 -> 38 | D32: =+$D$5 -> 44 | E32: =+$E$5 -> 0 | F32: =+$F$5 -> 0 | G32: =+$G$5 -> 908 | N32: 02 | O32: 00 | P32: 00 | Q32: 00 | U32: =+Bordro!G29+Bordro!E33 -> 0 | X32: Verilen Gönderme Emirleri Hesabı
A33: TOPLAM | S33: =SUM(S12:T32) -> 0 | U33: =SUM(U12:W32) -> 0 | X33: TOPLAM
A34: Bordrodaki TOPLAM Hakediş (Bütçe Gideri Tahakkuk TOPLAMI) | S34: =SUM(S12:T17) -> 0
A41: =+'Bilgi Girişi'!C35 -> 0

Sheet Değerler Tablosu
I3: MAKAM TAZMİNATI CETVELİ (Ek: 20/3/1997-KHK-570/7 md.)
C4: Cari Dönem
C5: Yıl | E5: 2017 | I5: MAKAM TAZMİNATI | O5: Akademik | R5: Y.DİL TAZMİNATI
C6: Maaş Katsayısı | E6: 0.102706 | I6: Mak.Taz.Göst. X Maaş Katsayısı | O6: Y.DİL TAZMİNATI | R6: 27/3/2006 tar.ve 29299 veya 23299 sy.R.G.
C7: Yan Ödeme Katsayısı | E7: 0.03257 | I7: (Yük.Öğrt.Personel Kan.Ek Mad.2(Ek:20/3/1997-KHK-570/7 Md.) | O7: A | P7: 900 | R7: A1 İçin | S7: 100 -96 Puan
C8: Taban Aylık Katsayısı | E8: 1.607645 | I8: Rektör | J8: 7000 | O8: B | P8: 600 | R8: A İçin | S8: 90 -95 Puan
C9: Taban Aylık Çarpanı | E9: 1000 | I9: 3 Yıllık Profesör | J9: 6000 | O9: C | P9: 300 | R9: B İçin | S9: 80 -89 Puan
C10: Aile Yardımı Puanı | E10: 2134 | I10: (Bu kadroda üç yılını tamamlamış olmak şartıyla) | O10: D | P10: 2100 | R10: C İçin | S10: 70 -79 Puan
C11: Çocuk Yardımı Puanı 72 Aydan Küçük | E11: 500 | I11: Yeni Profesör | J11: 4500 | O11: E | P11: 1200
C12: Çocuk Yardımı Puanı 72 Aydan Büyük | E12: 250 | I12: Doçent | J12: 2000 | O12: A1 | P12: 1200
C13: Asgari Ücret (Günlük) | E13: 59.25 | I13: (Kaz.Hak.aylığı 1.Derece Olmak Kaydıyla) | N13: Araştırmacı 1 | O13: C | P13: 250
C14: Sendika Topl.Sö.z Prim Puanı | E14: 750 | I14: Genel Sekreter | J14: 2000 | N14: İç Denetçi | O14: B | P14: 600
I15: Araştırmacı 1 | J15: 3500
I16: İç Denetçi | J16: 2000
C19: Yıl | E19: 2016 | I19: GÖREV TAZMİNATI | R19: Akademik Teşvik Oranları %
C20: Maaş Katsayısı | E20: 0.088817 | R20: Yeni Profesör | S20: 100
C21: Yan Ödeme Katsayısı | E21: 0.028165 | I21: Makam Tazminatı Gösterge Rakamları | K21: İlave | L21: Toplam | R21: 3 Yıllık Profesör | S21: 100
C22: Taban Aylık Katsayısı | E22: 1.390277 | I22: 6000 | J22: Olanlar için | K22: 9000 | L22: =I22+K22 -> 15000 | R22: Prof.Dr. | S22: 100
C23: Taban Aylık Çarpanı | E23: 1000 | I23: 5500 | J23: Olanlar için | K23: 7000 | L23: 12500 | R23: Doç.Dr. | S23: 90
C24: Aile Yardımı Puanı | E24: 2134 | I24: 4500 | J24: Olanlar için | K24: 7000 | L24: 11500 | R24: Yrd.Doç.Dr. | S24: 80
C25: Çocuk Yardımı Puanı 72 Aydan Küçük | E25: 500 | I25: 4000 | J25: Olanlar için | K25: 6000 | L25: 10000 | R25: Arş.Grv. | S25: 70
C26: Çocuk Yardımı Puanı 72 Aydan Büyük | E26: 250 | I26: 2000 | J26: Olanlar için | K26: 6000 | L26: 8000 | R26: Öğretim.Grv. | S26: 70
C27: Asgari Ücret (Günlük) | E27: 54.9 | I27: 3500 | J27: Olanlar için | K27: 6000 | L27: 9500 | R27: Okutman | S27: 70
C28: Sendika Topl.Sö.z Primi TL | E28: 750 | I28: 7000 | J28: Olanlar için | L28: 17000 | M28: Temsil Tazminatı | R28: Uzman | S28: 70
R29: Çevirici | S29: 70
J30: Sakatlık İndirimi TL | R30: Rektör | S30: 100
I31: 1.Derece | J31: 880
C32: BES Oranı % | D32: 3 | I32: 2.Derece | J32: 440
I33: 3.Derece | J33: 200
C36: Yıl | E36: 2015 | I36: Ek Göstergesi | J36: %
C37: Maaş Katsayısı | E37: 0.083084 | I37: 0-2200 Arası | J37: 55
C38: Yan Ödeme Katsayısı | E38: 0.026347 | I38: 2200 Dahil 3600 Hariç | J38: 85
C39: Taban Aylık Katsayısı | E39: 1.30054 | I39: 3600 Dahil 4800 Hariç | J39: 145
C40: Taban Aylık Çarpanı | E40: 1000 | I40: 4800 Dahil 6400 Hariç | J40: 165
C41: Aile Yardımı Puanı | E41: 2134 | I41: 6400 Dahil 7600 Hariç | J41: 195
C42: Çocuk Yardımı Puanı 72 Aydan Küçük | E42: 500 | I42: 7600 Dahil 8400 Hariç | J42: 215
C43: Çocuk Yardımı Puanı 72 Aydan Büyük | E43: 250
C44: Asgari Ücret (Günlük) | E44: 40.05 | I44: Em.Kes.Katkı Oranı / Ek Gsösretegi Eşit Olanlar | K44: Em.Kes.Katkı Oranı / Ek Gsösretegi Eşit Olanlar
C45: Sendika Topl.Sö.z Primi TL | E45: 60 | I45: =IF('Bilgi Girişi'!D22<2200,55,0) -> 55 | K45: =IF('Bilgi Girişi'!D23<2200,55,0) -> 55
I46: =IF(I47>0,0,IF(AND('Bilgi Girişi'!D22>=2200,'Bilgi Girişi'!D22<=3600),85,0)) -> 0 | K46: =IF(I47>0,0,IF(AND('Bilgi Girişi'!D23>=2200,'Bilgi Girişi'!D23<=3600),85,0)) -> 0
I47: =IF(I48>0,0,IF(AND('Bilgi Girişi'!D22>=3600,'Bilgi Girişi'!D22<=4800),145,0)) -> 0 | K47: =IF(I48>0,0,IF(AND('Bilgi Girişi'!D23>=3600,'Bilgi Girişi'!D23<=4800),145,0)) -> 0
I48: =IF(I49>0,0,IF(AND('Bilgi Girişi'!D22>=4800,'Bilgi Girişi'!D22<=6400),165,0)) -> 0 | K48: =IF(I49>0,0,IF(AND('Bilgi Girişi'!D23>=4800,'Bilgi Girişi'!D23<=6400),165,0)) -> 0
I49: =IF(I50>0,0,IF(AND('Bilgi Girişi'!D22>=6400,'Bilgi Girişi'!D22<=7600),195,0)) -> 0 | K49: =IF(I50>0,0,IF(AND('Bilgi Girişi'!D23>=6400,'Bilgi Girişi'!D23<=7600),195,0)) -> 0
D81: =+'Bilgi Girişi'!C35 -> 0

Sheet Asg Geç İnd
A2: =COUNTIF(A4:A33,">0") -> 1
A3: Sıra No | B3: Adı Soyadı | C3: Medeni Hali | E3: Eşi Çalışıyormu | F3: Çocuk Sayısı | G3: İlgili Döneme Ait Maaşındaki Vergi Matrahı | H3: Sakatlık İndirimi (Varsa) | I3: GELİR VERGİSİNE TABİ GELİRİ | J3: İlgili Dönemde Kendisinden Kesilen Gelir Vergisi tutarı | K3: 16 Yaşından Büyükler İçin Asgari Ücret (Günlük) | L3: 16 Yaşından Büyükler İçin Asgari Ücret (Yıllık) | M3: Asgari Geçim İndirimine Esas Tutar | N3: Asgari Geçim İndiriminin Yıllık Tutarı | O3: Hesaplanan Yıllık Tutarın 1/12 si | P3: İlgili Dönemde Mükellefin (Çalışanın) Ödeyeceği Vergi Tutarı | Q3: Çalışan Personel İçin | R3: Eşi İçin | S3: 1.Çocuk | T3: 2.Çocuk | U3: 3.Çocuk | V3: 4.Çocuk | W3: 5.Çocuk | X3: TOPLAM İnd.Oranı | Y3: Ödenecek İndirim Tutarı
A4: 1 | B4: =+'Bilgi Girişi'!D11 -> 0 | C4: =+'Bilgi Girişi'!D12 -> 0 | D4: =MID(C4,10,10) ->  | E4: =IF(A4<=0,"",IF(D4="Çalışıyor","Evet",IF(C4="Dul","",IF(C4="Bekar","",IF(D4="Çalışmıyor","Hayır",IF(C4="Evli Eşi Emekli V.İnd Yararlanıyor","Hayır","")))))) ->  | F4: =SUM('Bilgi Girişi'!D13+'Bilgi Girişi'!E13) -> 0 | G4: =+Hesaplamalar!U5 -> 0 | I4: =G4-H4 -> 0 | J4: =ROUND((I4*0.15),2) -> 0 | K4: =IF(A4<=0,0,'Değerler Tablosu'!E13) -> 59.25 | L4: =(K4*30)*12 -> 21330 | M4: =ROUND((L4*X4)/100,2) -> 10665 | N4: =ROUND((M4*0.15),2) -> 1599.75 | O4: =ROUND((N4/12),2) -> 133.31 | P4: =IF(J4-O4<0,0,J4-O4) -> 0 | Q4: =IF(A4<=0,0,50) -> 50 | R4: =IF(E4="Hayır",10,0) -> 0 | S4: =IF(F4=0,0,IF(F4=1,7.5,IF(F4>1,7.5))) -> 0 | T4: =IF(F4=0,0,IF(F4>1,7.5,)) -> 0 | U4: =IF(F4>2,10,0) -> 0 | V4: =IF(F4>3,5,0) -> 0 | W4: =IF(F4>4,5,0) -> 0 | X4: =SUM(Q4:W4) -> 50 | Y4: =IF('Bilgi Girişi'!I2="Evet",0,IF(J4<O4,+J4,+O4)) -> 0
B16: =+'Bilgi Girişi'!C35 -> 0
B18: =IF('Değerler Tablosu'!J30=C123,"Sendika Adı",IF('Değerler Tablosu'!J30=C126,"Sendika Adı",IF('Değerler Tablosu'!J30=C129,"Sendika Adı",IF('Değerler Tablosu'!J30=C132,"Sendika Adı",0)))) -> 0

Sheet Vergi
C1: =CONCATENATE(C2," ","Yılı İçin") -> 2017 Yılı İçin
B2: Yıl | C2: 2017
A3: 1 | B3: 1.Dilim | C3: 13000 | E3: =CONCATENATE(C3," ","TL'ye kadar"," ","(0","-",C3,".-TL)") -> 13000 TL'ye kadar (0-13000.-TL) | G3: 0.15 | K3: =ROUND(C3*0.15,2) -> 1950
A4: 2 | B4: 2.Dilim | C4: 30000 | E4: =CONCATENATE(C4,"-TL'nin"," ",C3,"-TL'si için"," ",K3,"-TL, fazlası","( ",C4,"-",C3,"-TL)") -> 30000-TL'nin 13000-TL'si için 1950-TL, fazlası( 30000-13000-TL) | G4: 0.2 | K4: =ROUND((C4-C3)*0.2,2) -> 3400 | L4: =K4+K3 -> 5350
A5: 3 | B5: 3:dilim | C5: 110000 | E5: =CONCATENATE(C5,"-TL'nin"," ",C4," ","- TL'si için"," ",L4,"-TL"," ","fazlası","(",C5,"-",C4,"-TL)") -> 110000-TL'nin 30000 - TL'si için 5350-TL fazlası(110000-30000-TL) | G5: 0.27
E6: =CONCATENATE(C5," ","-TL'den fazlası") -> 110000 -TL'den fazlası | G6: 0.35
C11: D.V.Oranı | D11: 0.00759
C12: Sendka Aidat Oranı | D12: 0.005
C17: =IF(C35<=Vergi!C3,Vergi!G3,IF(Hesaplamalar!U7>Vergi!C3,Vergi!G4,IF(Hesaplamalar!U7>Vergi!C4,Vergi!G5)))*100 -> 15
C19: 15 | D19: 16 | E19: 17 | F19: 18
C20: Uygulanacak Oran | D20: Vergi Oranı1 | E20: Vergi Oranı2 | F20: Vergi Oranı2 | G20: Vergi Oranı3 | H20: Vergi Oranı3
C21: =+D32 -> 15 | D21: =IF(Hesaplamalar!U7<=C3,G3,IF(Hesaplamalar!U7>C3,G4))*100 -> 15 | E21: =IF(Hesaplamalar!U7>C4,"Evet",0) -> 0 | F21: =IF(E21="Evet",G5,0)*100 -> 0 | G21: =IF(Hesaplamalar!U7>C5,"Malesef",0) -> 0 | H21: =IF(G21="Malesef",G6,0)*100 -> 0
D27: =+C19 -> 15
D28: =+D21 -> 15
D29: =+F21 -> 0
D30: =+H21 -> 0
C32: En Büyük Oran | D32: =MAX(D27:D30) -> 15
B42: =+'Bilgi Girişi'!C35 -> 0

Sheet Derece Kademe
D2: 1 Numaralı Cetvel
E3: Aylık GÖSTERGE TABLOSU (1) | S3: 7600 (Dahil) - 8400 (Hariç) Arasında Olanlar ... Den 215 'e
C4: DERECE | D4: 1 | E4: 2 | F4: 3 | G4: 4 | H4: 5 | I4: 6 | J4: 7 | K4: 8 | L4: 9 | S4: 6400 (Dahil) - 7600 (Hariç) Arasında Olanlar 180 Den 195 'e
C5: 1 | D5: 1320 | E5: 1380 | F5: 1440 | G5: 1500 | H5: -- | I5: -- | J5: -- | K5: -- | L5: -- | S5: 4800 (Dahil) - 6400 (Hariç) Arasında Olanlar 150 Den 165 'e
C6: 2 | D6: 1155 | E6: 1210 | F6: 1265 | G6: 1320 | H6: 1380 | I6: 1440 | J6: -- | K6: -- | L6: -- | S6: 3600 (Dahil) - 4800 (Hariç) Arasında Olanlar 130 Den 145 'e
C7: 3 | D7: 1020 | E7: 1065 | F7: 1110 | G7: 1155 | H7: 1210 | I7: 1265 | J7: 1320 | K7: 1380 | L7: -- | S7: 2200 (Dahil) -36000 (Hariç) Arasında Olanlar 70 Den 85 'e
C8: 4 | D8: 915 | E8: 950 | F8: 985 | G8: 1020 | H8: 1065 | I8: 1110 | J8: 1155 | K8: 1210 | L8: 1265 | S8: Digerleri 40 Den 55 'e
C9: 5 | D9: 835 | E9: 865 | F9: 895 | G9: 915 | H9: 950 | I9: 985 | J9: 1020 | K9: 1065 | L9: 1110
C10: 6 | D10: 760 | E10: 785 | F10: 810 | G10: 835 | H10: 865 | I10: 895 | J10: 915 | K10: 950 | L10: 985
C11: 7 | D11: 705 | E11: 720 | F11: 740 | G11: 760 | H11: 785 | I11: 810 | J11: 835 | K11: 865 | L11: 895
C12: 8 | D12: 660 | E12: 675 | F12: 690 | G12: 705 | H12: 720 | I12: 740 | J12: 760 | K12: 785 | L12: 810
C13: 9 | D13: 620 | E13: 630 | F13: 645 | G13: 660 | H13: 675 | I13: 690 | J13: 705 | K13: 720 | L13: 740
C14: 10 | D14: 590 | E14: 600 | F14: 610 | G14: 620 | H14: 630 | I14: 645 | J14: 660 | K14: 675 | L14: 690
C15: 11 | D15: 560 | E15: 570 | F15: 580 | G15: 590 | H15: 600 | I15: 610 | J15: 620 | K15: 630 | L15: 645
C16: 12 | D16: 545 | E16: 550 | F16: 555 | G16: 560 | H16: 570 | I16: 580 | J16: 590 | K16: 600 | L16: 610 | N16: D/ K | O16: Puan
C17: 13 | D17: 530 | E17: 535 | F17: 540 | G17: 545 | H17: 550 | I17: 555 | J17: 560 | K17: 570 | L17: 580 | N17: =CONCATENATE($C$5,D4) -> 11 | O17: =+N18 -> 1320
C18: 14 | D18: 515 | E18: 520 | F18: 525 | G18: 530 | H18: 535 | I18: 540 | J18: 545 | K18: 550 | L18: 555 | N18: 1320
C19: 15 | D19: 500 | E19: 505 | F19: 510 | G19: 515 | H19: 520 | I19: 525 | J19: 530 | K19: 535 | L19: 540 | N19: =CONCATENATE($C$6,D4) -> 21 | O19: =+N20 -> 1155
N20: 1155
N21: =CONCATENATE($C$7,D4) -> 31 | O21: =+N22 -> 1020
D22: 0 | E22: 55 | H22: 1 | N22: 1020
D23: =D22+100 -> 100 | E23: 55 | H23: 2 | N23: =CONCATENATE($C$8,D4) -> 41 | O23: =+N24 -> 915
D24: 200 | E24: 55 | H24: 3 | N24: 915
D25: 300 | E25: 55 | H25: 4 | N25: =CONCATENATE($C$9,D4) -> 51 | O25: =+N26 -> 835
D26: 400 | E26: 55 | H26: 5 | N26: 835
D27: 500 | E27: 55 | H27: 6 | N27: =CONCATENATE($C$10,D4) -> 61 | O27: =+N28 -> 760
D28: 600 | E28: 55 | H28: 7 | N28: 760
D29: 650 | E29: 55 | H29: 8 | N29: =CONCATENATE($C$11,D4) -> 71 | O29: =+N30 -> 705
D30: =D29+100 -> 750 | E30: 55 | H30: 9 | N30: 705
D31: 850 | E31: 55 | H31: 10 | N31: =CONCATENATE($C$12,D4) -> 81 | O31: =+N32 -> 660
D32: 950 | E32: 55 | H32: 11 | N32: 660
D33: 1050 | E33: 55 | H33: 12 | N33: =CONCATENATE($C$13,D4) -> 91 | O33: =+N34 -> 620
D34: 1150 | E34: 55 | H34: 13 | N34: 620
D35: 1250 | E35: 55 | H35: 14 | N35: =CONCATENATE($C$14,D4) -> 101 | O35: =+N36 -> 590
D36: 1350 | E36: 55 | H36: 15 | N36: 590
D37: 1450 | E37: 55 | H37: 16 | N37: =CONCATENATE($C$15,D4) -> 111 | O37: =+N38 -> 560
D38: 1550 | E38: 55 | H38: 17 | N38: 560
D39: 1650 | E39: 55 | H39: 18 | N39: =CONCATENATE($C$16,D4) -> 121 | O39: =+N40 -> 545
D40: 1750 | E40: 55 | H40: 19 | N40: 545
D41: 1850 | E41: 55 | H41: 20 | N41: =CONCATENATE($C$17,D4) -> 131 | O41: =+N42 -> 530
D42: 1950 | E42: 55 | H42: 21 | N42: 530
D43: 2050 | E43: 55 | H43: 22 | N43: =CONCATENATE($C$18,D4) -> 141 | O43: =+N44 -> 515
D44: 2150 | E44: 55 | H44: 23 | N44: 515
D45: 2200 | E45: 85 | H45: 24 | N45: =CONCATENATE($C$19,D4) -> 151 | O45: =+N46 -> 500
D46: =D45+100 -> 2300 | E46: 85 | H46: 25 | N46: 500
D47: 2400 | E47: 85 | N47: =CONCATENATE($C$5,E4) -> 12 | O47: =+N48 -> 1380 | Q47: =+P48 -> 0 | S47: =+R48 -> 0 | U47: =+T48 -> 0 | W47: =+V48 -> 0 | Y47: =+X48 -> 0 | AA47: =+Z48 -> 0 | AC47: =+AB48 -> 0
D48: 2500 | E48: 85 | N48: 1380
D49: 2600 | E49: 85 | N49: =CONCATENATE($C$6,E4) -> 22 | O49: =+N50 -> 1210
D50: 2700 | E50: 85 | N50: 1210
D51: 2800 | E51: 85 | N51: =CONCATENATE($C$7,E4) -> 32 | O51: =+N52 -> 1065
D52: 2900 | E52: 85 | N52: 1065
D53: 3000 | E53: 85 | N53: =CONCATENATE($C$8,E4) -> 42 | O53: =+N54 -> 950
D54: 3100 | E54: 85 | N54: 950
D55: 3200 | E55: 85 | N55: =CONCATENATE($C$9,E4) -> 52 | O55: =+N56 -> 865
D56: 3300 | E56: 85 | N56: 865
D57: 3400 | E57: 85 | N57: =CONCATENATE($C$10,E4) -> 62 | O57: =+N58 -> 785
D58: 3500 | E58: 85 | N58: 785
D59: 3600 | E59: 145 | N59: =CONCATENATE($C$11,E4) -> 72 | O59: =+N60 -> 720
D60: 3700 | E60: 145 | N60: 720
D61: 3800 | E61: 145 | N61: =CONCATENATE($C$12,E4) -> 82 | O61: =+N62 -> 675
D62: 3900 | E62: 145 | N62: 675
D63: 4000 | E63: 145 | N63: =CONCATENATE($C$13,E4) -> 92 | O63: =+N64 -> 630
D64: 4100 | E64: 145 | N64: 630
D65: 4200 | E65: 145 | N65: =CONCATENATE($C$14,E4) -> 102 | O65: =+N66 -> 600
D66: 4300 | E66: 145 | N66: 600
D67: 4400 | E67: 145 | N67: =CONCATENATE($C$15,E4) -> 112 | O67: =+N68 -> 570
D68: 4500 | E68: 145 | N68: 570
D69: 4600 | E69: 145 | N69: =CONCATENATE($C$16,E4) -> 122 | O69: =+N70 -> 550
D70: 4700 | E70: 145 | N70: 550
D71: 4800 | E71: 165 | N71: =CONCATENATE($C$17,E4) -> 132 | O71: =+N72 -> 535
D72: 4900 | E72: 165 | N72: 535
D73: 5000 | E73: 165 | N73: =CONCATENATE($C$18,E4) -> 142 | O73: =+N74 -> 520
D74: 5100 | E74: 165 | N74: 520
D75: 5200 | E75: 165 | N75: =CONCATENATE($C$19,E4) -> 152 | O75: =+N76 -> 505
D76: 5300 | E76: 165 | N76: 505
D77: 5400 | E77: 165 | N77: =CONCATENATE($C$5,F4) -> 13 | O77: =+N78 -> 1440
D78: 5500 | E78: 165 | N78: 1440
D79: 5600 | E79: 165 | N79: =CONCATENATE($C$6,F4) -> 23 | O79: =+N80 -> 1265
D80: 5700 | E80: 165 | N80: 1265
D81: 5800 | E81: 165 | N81: =CONCATENATE($C$7,F4) -> 33 | O81: =+N82 -> 1110
D82: 5900 | E82: 165 | N82: 1110
D83: 6000 | E83: 165 | N83: =CONCATENATE($C$8,F4) -> 43 | O83: =+N84 -> 985
D84: 6100 | E84: 165 | N84: 985
D85: 6200 | E85: 165 | N85: =CONCATENATE($C$9,F4) -> 53 | O85: =+N86 -> 895
D86: 6300 | E86: 165 | N86: 895
D87: 6400 | E87: 195 | N87: =CONCATENATE($C$10,F4) -> 63 | O87: =+N88 -> 810
D88: 6500 | E88: 195 | N88: 810
N89: =CONCATENATE($C$11,F4) -> 73 | O89: =+N90 -> 740
N90: 740
N91: =CONCATENATE($C$12,F4) -> 83 | O91: =+N92 -> 690
N92: 690
N93: =CONCATENATE($C$13,F4) -> 93 | O93: =+N94 -> 645
N94: 645
N95: =CONCATENATE($C$14,F4) -> 103 | O95: =+N96 -> 610
N96: 610
N97: =CONCATENATE($C$15,F4) -> 113 | O97: =+N98 -> 580
N98: 580
N99: =CONCATENATE($C$16,F4) -> 123 | O99: =+N100 -> 555
N100: 555
N101: =CONCATENATE($C$17,F4) -> 133 | O101: =+N102 -> 540
N102: 540
N103: =CONCATENATE($C$18,F4) -> 143 | O103: =+N104 -> 525
N104: 525
N105: =CONCATENATE($C$19,F4) -> 153 | O105: =+N106 -> 510
N106: 510
N107: =CONCATENATE($C$5,G4) -> 14 | O107: =+N108 -> 1500
N108: 1500
N109: =CONCATENATE($C$6,G4) -> 24 | O109: =+N110 -> 1320
N110: 1320
N111: =CONCATENATE($C$7,G4) -> 34 | O111: =+N112 -> 1155
N112: 1155
N113: =CONCATENATE($C$8,G4) -> 44 | O113: =+N114 -> 1020
N114: 1020
N115: =CONCATENATE($C$9,G4) -> 54 | O115: =+N116 -> 915
D116: =CONCATENATE('Derece Kademe'!$C$5,"/",'Derece Kademe'!D4) -> 1/1 | E116: =CONCATENATE('Derece Kademe'!$C$5,"/",'Derece Kademe'!E4) -> 1/2 | F116: =CONCATENATE('Derece Kademe'!$C$5,"/",'Derece Kademe'!F4) -> 1/3 | G116: =CONCATENATE('Derece Kademe'!$C$5,"/",'Derece Kademe'!G4) -> 1/4 | N116: 915
D117: =CONCATENATE('Derece Kademe'!$C$6,"/",'Derece Kademe'!D4) -> 2/1 | E117: =CONCATENATE('Derece Kademe'!$C$6,"/",'Derece Kademe'!E4) -> 2/2 | F117: =CONCATENATE('Derece Kademe'!$C$6,"/",'Derece Kademe'!F4) -> 2/3 | G117: =CONCATENATE('Derece Kademe'!$C$6,"/",'Derece Kademe'!G4) -> 2/4 | H117: =CONCATENATE('Derece Kademe'!$C$6,"/",'Derece Kademe'!H4) -> 2/5 | I117: =CONCATENATE('Derece Kademe'!$C$6,"/",'Derece Kademe'!I4) -> 2/6 | N117: =CONCATENATE($C$10,G4) -> 64 | O117: =+N118 -> 835
D118: =CONCATENATE('Derece Kademe'!$C$7,"/",'Derece Kademe'!D4) -> 3/1 | E118: =CONCATENATE('Derece Kademe'!$C$7,"/",'Derece Kademe'!E4) -> 3/2 | F118: =CONCATENATE('Derece Kademe'!$C$7,"/",'Derece Kademe'!F4) -> 3/3 | G118: =CONCATENATE('Derece Kademe'!$C$7,"/",'Derece Kademe'!G4) -> 3/4 | H118: =CONCATENATE('Derece Kademe'!$C$7,"/",'Derece Kademe'!H4) -> 3/5 | I118: =CONCATENATE('Derece Kademe'!$C$7,"/",'Derece Kademe'!I4) -> 3/6 | J118: =CONCATENATE('Derece Kademe'!$C$7,"/",'Derece Kademe'!J4) -> 3/7 | K118: =CONCATENATE('Derece Kademe'!$C$7,"/",'Derece Kademe'!K4) -> 3/8 | N118: 835
D119: =CONCATENATE('Derece Kademe'!$C$8,"/",'Derece Kademe'!D4) -> 4/1 | E119: =CONCATENATE('Derece Kademe'!$C$8,"/",'Derece Kademe'!E4) -> 4/2 | F119: =CONCATENATE('Derece Kademe'!$C$8,"/",'Derece Kademe'!F4) -> 4/3 | G119: =CONCATENATE('Derece Kademe'!$C$8,"/",'Derece Kademe'!G4) -> 4/4 | H119: =CONCATENATE('Derece Kademe'!$C$8,"/",'Derece Kademe'!H4) -> 4/5 | I119: =CONCATENATE('Derece Kademe'!$C$8,"/",'Derece Kademe'!I4) -> 4/6 | J119: =CONCATENATE('Derece Kademe'!$C$8,"/",'Derece Kademe'!J4) -> 4/7 | K119: =CONCATENATE('Derece Kademe'!$C$8,"/",'Derece Kademe'!K4) -> 4/8 | L119: =CONCATENATE('Derece Kademe'!$C$8,"/",'Derece Kademe'!L4) -> 4/9 | N119: =CONCATENATE($C$11,G4) -> 74 | O119: =+N120 -> 760
D120: =CONCATENATE('Derece Kademe'!$C$9,"/",'Derece Kademe'!D4) -> 5/1 | E120: =CONCATENATE('Derece Kademe'!$C$9,"/",'Derece Kademe'!E4) -> 5/2 | F120: =CONCATENATE('Derece Kademe'!$C$9,"/",'Derece Kademe'!F4) -> 5/3 | G120: =CONCATENATE('Derece Kademe'!$C$9,"/",'Derece Kademe'!G4) -> 5/4 | H120: =CONCATENATE('Derece Kademe'!$C$9,"/",'Derece Kademe'!H4) -> 5/5 | I120: =CONCATENATE('Derece Kademe'!$C$9,"/",'Derece Kademe'!I4) -> 5/6 | J120: =CONCATENATE('Derece Kademe'!$C$9,"/",'Derece Kademe'!J4) -> 5/7 | K120: =CONCATENATE('Derece Kademe'!$C$9,"/",'Derece Kademe'!K4) -> 5/8 | L120: =CONCATENATE('Derece Kademe'!$C$9,"/",'Derece Kademe'!L4) -> 5/9 | N120: 760
D121: =CONCATENATE('Derece Kademe'!$C$10,"/",'Derece Kademe'!D4) -> 6/1 | E121: =CONCATENATE('Derece Kademe'!$C$10,"/",'Derece Kademe'!E4) -> 6/2 | F121: =CONCATENATE('Derece Kademe'!$C$10,"/",'Derece Kademe'!F4) -> 6/3 | G121: =CONCATENATE('Derece Kademe'!$C$10,"/",'Derece Kademe'!G4) -> 6/4 | H121: =CONCATENATE('Derece Kademe'!$C$10,"/",'Derece Kademe'!H4) -> 6/5 | I121: =CONCATENATE('Derece Kademe'!$C$10,"/",'Derece Kademe'!I4) -> 6/6 | J121: =CONCATENATE('Derece Kademe'!$C$10,"/",'Derece Kademe'!J4) -> 6/7 | K121: =CONCATENATE('Derece Kademe'!$C$10,"/",'Derece Kademe'!K4) -> 6/8 | L121: =CONCATENATE('Derece Kademe'!$C$10,"/",'Derece Kademe'!L4) -> 6/9 | N121: =CONCATENATE($C$12,G4) -> 84 | O121: =+N122 -> 705
D122: =CONCATENATE('Derece Kademe'!$C$11,"/",'Derece Kademe'!D4) -> 7/1 | E122: =CONCATENATE('Derece Kademe'!$C$11,"/",'Derece Kademe'!E4) -> 7/2 | F122: =CONCATENATE('Derece Kademe'!$C$11,"/",'Derece Kademe'!F4) -> 7/3 | G122: =CONCATENATE('Derece Kademe'!$C$11,"/",'Derece Kademe'!G4) -> 7/4 | H122: =CONCATENATE('Derece Kademe'!$C$11,"/",'Derece Kademe'!H4) -> 7/5 | I122: =CONCATENATE('Derece Kademe'!$C$11,"/",'Derece Kademe'!I4) -> 7/6 | J122: =CONCATENATE('Derece Kademe'!$C$11,"/",'Derece Kademe'!J4) -> 7/7 | K122: =CONCATENATE('Derece Kademe'!$C$11,"/",'Derece Kademe'!K4) -> 7/8 | L122: =CONCATENATE('Derece Kademe'!$C$11,"/",'Derece Kademe'!L4) -> 7/9 | N122: 705
D123: =CONCATENATE('Derece Kademe'!$C$12,"/",'Derece Kademe'!D4) -> 8/1 | E123: =CONCATENATE('Derece Kademe'!$C$12,"/",'Derece Kademe'!E4) -> 8/2 | F123: =CONCATENATE('Derece Kademe'!$C$12,"/",'Derece Kademe'!F4) -> 8/3 | G123: =CONCATENATE('Derece Kademe'!$C$12,"/",'Derece Kademe'!G4) -> 8/4 | H123: =CONCATENATE('Derece Kademe'!$C$12,"/",'Derece Kademe'!H4) -> 8/5 | I123: =CONCATENATE('Derece Kademe'!$C$12,"/",'Derece Kademe'!I4) -> 8/6 | J123: =CONCATENATE('Derece Kademe'!$C$12,"/",'Derece Kademe'!J4) -> 8/7 | K123: =CONCATENATE('Derece Kademe'!$C$12,"/",'Derece Kademe'!K4) -> 8/8 | L123: =CONCATENATE('Derece Kademe'!$C$12,"/",'Derece Kademe'!L4) -> 8/9 | N123: =CONCATENATE($C$13,G4) -> 94 | O123: =+N124 -> 660
D124: =CONCATENATE('Derece Kademe'!$C$13,"/",'Derece Kademe'!D4) -> 9/1 | E124: =CONCATENATE('Derece Kademe'!$C$13,"/",'Derece Kademe'!E4) -> 9/2 | F124: =CONCATENATE('Derece Kademe'!$C$13,"/",'Derece Kademe'!F4) -> 9/3 | G124: =CONCATENATE('Derece Kademe'!$C$13,"/",'Derece Kademe'!G4) -> 9/4 | H124: =CONCATENATE('Derece Kademe'!$C$13,"/",'Derece Kademe'!H4) -> 9/5 | I124: =CONCATENATE('Derece Kademe'!$C$13,"/",'Derece Kademe'!I4) -> 9/6 | J124: =CONCATENATE('Derece Kademe'!$C$13,"/",'Derece Kademe'!J4) -> 9/7 | K124: =CONCATENATE('Derece Kademe'!$C$13,"/",'Derece Kademe'!K4) -> 9/8 | L124: =CONCATENATE('Derece Kademe'!$C$13,"/",'Derece Kademe'!L4) -> 9/9 | N124: 660
D125: =CONCATENATE('Derece Kademe'!$C$14,"/",'Derece Kademe'!D4) -> 10/1 | E125: =CONCATENATE('Derece Kademe'!$C$14,"/",'Derece Kademe'!E4) -> 10/2 | F125: =CONCATENATE('Derece Kademe'!$C$14,"/",'Derece Kademe'!F4) -> 10/3 | G125: =CONCATENATE('Derece Kademe'!$C$14,"/",'Derece Kademe'!G4) -> 10/4 | H125: =CONCATENATE('Derece Kademe'!$C$14,"/",'Derece Kademe'!H4) -> 10/5 | I125: =CONCATENATE('Derece Kademe'!$C$14,"/",'Derece Kademe'!I4) -> 10/6 | J125: =CONCATENATE('Derece Kademe'!$C$14,"/",'Derece Kademe'!J4) -> 10/7 | K125: =CONCATENATE('Derece Kademe'!$C$14,"/",'Derece Kademe'!K4) -> 10/8 | L125: =CONCATENATE('Derece Kademe'!$C$14,"/",'Derece Kademe'!L4) -> 10/9 | N125: =CONCATENATE($C$14,G4) -> 104 | O125: =+N126 -> 620
D126: =CONCATENATE('Derece Kademe'!$C$15,"/",'Derece Kademe'!D4) -> 11/1 | E126: =CONCATENATE('Derece Kademe'!$C$15,"/",'Derece Kademe'!E4) -> 11/2 | F126: =CONCATENATE('Derece Kademe'!$C$15,"/",'Derece Kademe'!F4) -> 11/3 | G126: =CONCATENATE('Derece Kademe'!$C$15,"/",'Derece Kademe'!G4) -> 11/4 | H126: =CONCATENATE('Derece Kademe'!$C$15,"/",'Derece Kademe'!H4) -> 11/5 | I126: =CONCATENATE('Derece Kademe'!$C$15,"/",'Derece Kademe'!I4) -> 11/6 | J126: =CONCATENATE('Derece Kademe'!$C$15,"/",'Derece Kademe'!J4) -> 11/7 | K126: =CONCATENATE('Derece Kademe'!$C$15,"/",'Derece Kademe'!K4) -> 11/8 | L126: =CONCATENATE('Derece Kademe'!$C$15,"/",'Derece Kademe'!L4) -> 11/9 | N126: 620
D127: =CONCATENATE('Derece Kademe'!$C$16,"/",'Derece Kademe'!D4) -> 12/1 | E127: =CONCATENATE('Derece Kademe'!$C$16,"/",'Derece Kademe'!E4) -> 12/2 | F127: =CONCATENATE('Derece Kademe'!$C$16,"/",'Derece Kademe'!F4) -> 12/3 | G127: =CONCATENATE('Derece Kademe'!$C$16,"/",'Derece Kademe'!G4) -> 12/4 | H127: =CONCATENATE('Derece Kademe'!$C$16,"/",'Derece Kademe'!H4) -> 12/5 | I127: =CONCATENATE('Derece Kademe'!$C$16,"/",'Derece Kademe'!I4) -> 12/6 | J127: =CONCATENATE('Derece Kademe'!$C$16,"/",'Derece Kademe'!J4) -> 12/7 | K127: =CONCATENATE('Derece Kademe'!$C$16,"/",'Derece Kademe'!K4) -> 12/8 | L127: =CONCATENATE('Derece Kademe'!$C$16,"/",'Derece Kademe'!L4) -> 12/9 | N127: =CONCATENATE($C$15,G4) -> 114 | O127: =+N128 -> 590
D128: =CONCATENATE('Derece Kademe'!$C$17,"/",'Derece Kademe'!D4) -> 13/1 | E128: =CONCATENATE('Derece Kademe'!$C$17,"/",'Derece Kademe'!E4) -> 13/2 | F128: =CONCATENATE('Derece Kademe'!$C$17,"/",'Derece Kademe'!F4) -> 13/3 | G128: =CONCATENATE('Derece Kademe'!$C$17,"/",'Derece Kademe'!G4) -> 13/4 | H128: =CONCATENATE('Derece Kademe'!$C$17,"/",'Derece Kademe'!H4) -> 13/5 | I128: =CONCATENATE('Derece Kademe'!$C$17,"/",'Derece Kademe'!I4) -> 13/6 | J128: =CONCATENATE('Derece Kademe'!$C$17,"/",'Derece Kademe'!J4) -> 13/7 | K128: =CONCATENATE('Derece Kademe'!$C$17,"/",'Derece Kademe'!K4) -> 13/8 | L128: =CONCATENATE('Derece Kademe'!$C$17,"/",'Derece Kademe'!L4) -> 13/9 | N128: 590
D129: =CONCATENATE('Derece Kademe'!$C$18,"/",'Derece Kademe'!D4) -> 14/1 | E129: =CONCATENATE('Derece Kademe'!$C$18,"/",'Derece Kademe'!E4) -> 14/2 | F129: =CONCATENATE('Derece Kademe'!$C$18,"/",'Derece Kademe'!F4) -> 14/3 | G129: =CONCATENATE('Derece Kademe'!$C$18,"/",'Derece Kademe'!G4) -> 14/4 | H129: =CONCATENATE('Derece Kademe'!$C$18,"/",'Derece Kademe'!H4) -> 14/5 | I129: =CONCATENATE('Derece Kademe'!$C$18,"/",'Derece Kademe'!I4) -> 14/6 | J129: =CONCATENATE('Derece Kademe'!$C$18,"/",'Derece Kademe'!J4) -> 14/7 | K129: =CONCATENATE('Derece Kademe'!$C$18,"/",'Derece Kademe'!K4) -> 14/8 | L129: =CONCATENATE('Derece Kademe'!$C$18,"/",'Derece Kademe'!L4) -> 14/9 | N129: =CONCATENATE($C$16,G4) -> 124 | O129: =+N130 -> 560
D130: =CONCATENATE('Derece Kademe'!$C$19,"/",'Derece Kademe'!D4) -> 15/1 | E130: =CONCATENATE('Derece Kademe'!$C$19,"/",'Derece Kademe'!E4) -> 15/2 | F130: =CONCATENATE('Derece Kademe'!$C$19,"/",'Derece Kademe'!F4) -> 15/3 | G130: =CONCATENATE('Derece Kademe'!$C$19,"/",'Derece Kademe'!G4) -> 15/4 | H130: =CONCATENATE('Derece Kademe'!$C$19,"/",'Derece Kademe'!H4) -> 15/5 | I130: =CONCATENATE('Derece Kademe'!$C$19,"/",'Derece Kademe'!I4) -> 15/6 | J130: =CONCATENATE('Derece Kademe'!$C$19,"/",'Derece Kademe'!J4) -> 15/7 | K130: =CONCATENATE('Derece Kademe'!$C$19,"/",'Derece Kademe'!K4) -> 15/8 | L130: =CONCATENATE('Derece Kademe'!$C$19,"/",'Derece Kademe'!L4) -> 15/9 | N130: 560
N131: =CONCATENATE($C$17,G4) -> 134 | O131: =+N132 -> 545
N132: 545
N133: =CONCATENATE($C$18,G4) -> 144 | O133: =+N134 -> 530
N134: 530
N135: =CONCATENATE($C$19,G4) -> 154 | O135: =+N136 -> 515
N136: 515
N137: =CONCATENATE($C$5,H4) -> 15 | O137: =+N138 -> --
N138: --
N139: =CONCATENATE($C$6,H4) -> 25 | O139: =+N140 -> 1380
N140: 1380
N141: =CONCATENATE($C$7,H4) -> 35 | O141: =+N142 -> 1210
N142: 1210
N143: =CONCATENATE($C$8,H4) -> 45 | O143: =+N144 -> 1065
N144: 1065
N145: =CONCATENATE($C$9,H4) -> 55 | O145: =+N146 -> 950
N146: 950
N147: =CONCATENATE($C$10,H4) -> 65 | O147: =+N148 -> 865
N148: 865
N149: =CONCATENATE($C$11,H4) -> 75 | O149: =+N150 -> 785
N150: 785
N151: =CONCATENATE($C$12,H4) -> 85 | O151: =+N152 -> 720
N152: 720
N153: =CONCATENATE($C$13,H4) -> 95 | O153: =+N154 -> 675
N154: 675
N155: =CONCATENATE($C$14,H4) -> 105 | O155: =+N156 -> 630
N156: 630
N157: =CONCATENATE($C$15,H4) -> 115 | O157: =+N158 -> 600
N158: 600
N159: =CONCATENATE($C$16,H4) -> 125 | O159: =+N160 -> 570
N160: 570
N161: =CONCATENATE($C$17,H4) -> 135 | O161: =+N162 -> 550
N162: 550
N163: =CONCATENATE($C$18,H4) -> 145 | O163: =+N164 -> 535
N164: 535
N165: =CONCATENATE($C$19,H4) -> 155 | O165: =+N166 -> 520
N166: 520
N167: =CONCATENATE($C$5,I4) -> 16 | O167: =+N168 -> --
N168: --
N169: =CONCATENATE($C$6,I4) -> 26 | O169: =+N170 -> 1440
N170: 1440
N171: =CONCATENATE($C$7,I4) -> 36 | O171: =+N172 -> 1265
N172: 1265
N173: =CONCATENATE($C$8,I4) -> 46 | O173: =+N174 -> 1110
N174: 1110
N175: =CONCATENATE($C$9,I4) -> 56 | O175: =+N176 -> 985
N176: 985
N177: =CONCATENATE($C$10,I4) -> 66 | O177: =+N178 -> 895
N178: 895
N179: =CONCATENATE($C$11,I4) -> 76 | O179: =+N180 -> 810
N180: 810
N181: =CONCATENATE($C$12,I4) -> 86 | O181: =+N182 -> 740
N182: 740
N183: =CONCATENATE($C$13,I4) -> 96 | O183: =+N184 -> 690
N184: 690
C185: =+'Bilgi Girişi'!C35 -> 0 | N185: =CONCATENATE($C$14,I4) -> 106 | O185: =+N186 -> 645
N186: 645
N187: =CONCATENATE($C$15,I4) -> 116 | O187: =+N188 -> 610
N188: 610
N189: =CONCATENATE($C$16,I4) -> 126 | O189: =+N190 -> 580
N190: 580
N191: =CONCATENATE($C$17,I4) -> 136 | O191: =+N192 -> 555
N192: 555
N193: =CONCATENATE($C$18,I4) -> 146 | O193: =+N194 -> 540
N194: 540
N195: =CONCATENATE($C$19,I4) -> 156 | O195: =+N196 -> 525
N196: 525
N197: =CONCATENATE($C$5,J4) -> 17 | O197: =+N198 -> --
N198: --
N199: =CONCATENATE($C$6,J4) -> 27 | O199: =+N200 -> --
N200: --
N201: =CONCATENATE($C$7,J4) -> 37 | O201: =+N202 -> 1320
... 86 more rows
